Workbook

Sheet Январь2015
B2: Клиенты Участников торгов Фондовой биржи ММВБ
B3: 2015-01-31
B6: Динамика количества клиентов за | C6: =B3 -> 2015-01-31
B10: Количество зарегистрированных клиентов в Системе торгов (по состоянию на последний день месяца): | H10: Таблица 1
B11: Группы клиентов | E11: 2014-12-30 | F11: =EDATE(E11,1) -> 2015-01-30 | G11: Изменение (ед.) | H11: Изменение (%)
B12: Физические лица | E12: 1129475 | F12: 1201812 | G12: =F12-E12 -> 72337 | H12: =F12/E12-1 -> 0.06404479958
B13: Юридические лица | E13: 36085 | F13: 35032 | G13: =F13-E13 -> -1053 | H13: -0.02918110018
B14: Нерезиденты | E14: 12793 | F14: 13040 | G14: 247 | H14: 0.01930743375
B15: Нерезиденты - физические лица | E15: 3190 | F15: 3250 | G15: 60 | H15: 0.01880877743
B16: Нерезиденты - юридические лица | E16: 9603 | F16: 9790 | G16: 187 | H16: 0.01947308133
B17: Клиенты, передавшие свои средства в ДУ | E17: 13081 | F17: 13022 | G17: -59 | H17: -0.004510358535
B18: Всего | E18: 1191434 | F18: 1262906 | G18: 71472 | H18: 0.05998821588
B21: Количество уникальных клиентов в Системе торгов (по состоянию на последний день месяца): | H21: Таблица 2
B22: Группы клиентов | E22: =E11 -> 2014-12-30 | F22: =F11 -> 2015-01-30 | G22: Изменение (ед.) | H22: Изменение (%)
B23: Физические лица | E23: 944559 | F23: 950502 | G23: =F23-E23 -> 5943 | H23: =F23/E23-1 -> 0.006291825074
B24: Юридические лица | E24: 20178 | F24: 20249 | G24: =F24-E24 -> 71 | H24: =F24/E24-1 -> 0.003518683715
B25: Нерезиденты | E25: 7486 | F25: 7537 | G25: 51 | H25: 0.006812717072
B26: Нерезиденты - физические лица | E26: 3113 | F26: 3174 | G26: 61 | H26: 0.01959524574
B27: Нерезиденты - юридические лица | E27: 4373 | F27: 4363 | G27: -10 | H27: -0.002286759662
B28: Клиенты, передавшие свои средства в ДУ | E28: 5142 | F28: 5091 | G28: -51 | H28: -0.00991831972
B29: Всего | E29: 977365 | F29: 983379 | G29: 6014 | H29: 0.006153279481
B32: Количество активных клиентов в Системе торгов (совершивших в течение месяца хотя бы одну сделку): | H32: Таблица 3
B33: Группы клиентов | E33: =E11 -> 2014-12-30 | F33: =F11 -> 2015-01-30 | G33: Изменение (ед.) | H33: Изменение (%)
B34: Физические лица | E34: 78587 | F34: 67642 | G34: =F34-E34 -> -10945 | H34: =F34/E34-1 -> -0.1392723987
B35: Юридические лица | E35: 1441 | F35: 990 | G35: -451 | H35: -0.3129770992
B36: Нерезиденты | E36: 668 | F36: 534 | G36: -134 | H36: -0.2005988024
B37: Нерезиденты - физические лица | E37: 268 | F37: 212 | G37: -56 | H37: -0.2089552239
B38: Нерезиденты - юридические лица | E38: 400 | F38: 322 | G38: -78 | H38: -0.195
B39: Клиенты, передавшие свои средства в ДУ | E39: 624 | F39: 595 | G39: -29 | H39: -0.04647435897
B40: Всего | E40: 81320 | F40: 69761 | G40: -11559 | H40: -0.1421421545
B44: Изменение количества уникальных клиентов - ретроспективные данные
B48: Количество уникальных клиентов в Системе торгов (по состоянию на последний день месяца) (ежегодная статистика): | H48: Таблица 1
B49: Группы клиентов | E49: 2010-12-31 | F49: 2011-12-31 | G49: 2012-12-31 | H49: 2013-12-31 | I49: 2014-12-31
B50: Физические лица | E50: 714295 | F50: 772175 | G50: 805549 | H50: 881844 | I50: 944559
B51: Юридические лица | E51: 17170 | F51: 16850 | G51: 17821 | H51: 19539 | I51: 20178
B52: Нерезиденты | E52: 4295 | F52: 5058 | G52: 5876 | H52: 6957 | I52: 7486
B53: Клиенты, передавшие свои средства в ДУ | E53: 5348 | F53: 5242 | G53: 5261 | H53: 5182 | I53: 5142
B54: Всего | E54: 741108 | F54: 799325 | G54: 834507 | H54: 913522 | I54: 977365
B82: Количество уникальных клиентов в Системе торгов (по состоянию на последний день месяца) (за последние 6 месяцев): | H82: Таблица 2
B83: Группы клиентов | C83: =EDATE(D83,-1) -> 2014-08-30 | D83: =EDATE(E83,-1) -> 2014-09-30 | E83: =EDATE(F83,-1) -> 2014-10-30 | F83: =EDATE(G83,-1) -> 2014-11-30 | G83: =EDATE(H83,-1) -> 2014-12-30 | H83: =EDATE(E11,1) -> 2015-01-30
B84: Физические лица | C84: 915943 | D84: 912627 | E84: 916147 | F84: 921438 | G84: 944559 | H84: 950502
B85: Юридические лица | C85: 19872 | D85: 19829 | E85: 19927 | F85: 19975 | G85: 20178 | H85: 20249
B86: Нерезиденты | C86: 7273 | D86: 7332 | E86: 7352 | F86: 7368 | G86: 7486 | H86: 7537
B87: Клиенты, передавшие свои средства в ДУ | C87: 5173 | D87: 5174 | E87: 5159 | F87: 5145 | G87: 5142 | H87: 5091
B88: Всего | C88: 948261 | D88: 944962 | E88: 948585 | F88: 953926 | G88: 977365 | H88: 983379
B124: Дополнительные показатели за | C124: =B3 -> 2015-01-31
H127: Таблица 1
B128: Участники торгов | G128: Абсолютные показатели
B129: Количество Участников торгов, имеющих активных клиентов | G129: 402
B133: Списки ведущих операторов фондового рынка - клиенты Участников торгов за | F133: =C6 -> 2015-01-31
B136: Ведущие операторы рынка – число зарегистрированных клиентов | H136: Таблица 1
B137: (по общему количеству уникальных клиентов всех типов, зарегистрированных в системе торгов биржи, в том числе в течение месяца)
B138: Наименование Участника торгов | G138: Количество клиентов
B139: ВТБ 24 (ЗАО) | C139: ВТБ 24 (ЗАО) | D139: ВТБ 24 (ЗАО) | E139: ВТБ 24 (ЗАО) | F139: ВТБ 24 (ЗАО) | G139: 214048 | H139: 214048
B140: Сбербанк | C140: Сбербанк | D140: Сбербанк | E140: Сбербанк | F140: Сбербанк | G140: 179617 | H140: 179617
B141: ЗАО "ФИНАМ" | C141: ЗАО "ФИНАМ" | D141: ЗАО "ФИНАМ" | E141: ЗАО "ФИНАМ" | F141: ЗАО "ФИНАМ" | G141: 125994 | H141: 125994
B142: ФГ БКС | C142: ФГ БКС | D142: ФГ БКС | E142: ФГ БКС | F142: ФГ БКС | G142: 122950 | H142: 122950
B143: ОАО "АЛЬФА-БАНК" | C143: ОАО "АЛЬФА-БАНК" | D143: ОАО "АЛЬФА-БАНК" | E143: ОАО "АЛЬФА-БАНК" | F143: ОАО "АЛЬФА-БАНК" | G143: 62151 | H143: 62151
B144: ФГ "ОТКРЫТИЕ" | C144: ФГ "ОТКРЫТИЕ" | D144: ФГ "ОТКРЫТИЕ" | E144: ФГ "ОТКРЫТИЕ" | F144: ФГ "ОТКРЫТИЕ" | G144: 52879 | H144: 52879
B145: ООО "АТОН" | C145: ООО "АТОН" | D145: ООО "АТОН" | E145: ООО "АТОН" | F145: ООО "АТОН" | G145: 45956 | H145: 45956
B146: ГК "АЛОР" | C146: ГК "АЛОР" | D146: ГК "АЛОР" | E146: ГК "АЛОР" | F146: ГК "АЛОР" | G146: 30949 | H146: 30949
B147: КИТ Финанс (ООО) | C147: КИТ Финанс (ООО) | D147: КИТ Финанс (ООО) | E147: КИТ Финанс (ООО) | F147: КИТ Финанс (ООО) | G147: 21376 | H147: 21376
B148: ООО "Инвестиционная палата" | C148: ООО "Инвестиционная палата" | D148: ООО "Инвестиционная палата" | E148: ООО "Инвестиционная палата" | F148: ООО "Инвестиционная палата" | G148: 19742 | H148: 19742
B151: Ведущие операторы рынка – число активных клиентов | H151: Таблица 2
B152: (по количеству уникальных клиентов, совершивших хотя бы одну сделку за месяц)
B153: Наименование Участника торгов | G153: Количество клиентов
B154: Сбербанк | C154: Сбербанк | D154: Сбербанк | E154: Сбербанк | F154: Сбербанк | G154: 12438 | H154: 12438
B155: ЗАО "ФИНАМ" | C155: ЗАО "ФИНАМ" | D155: ЗАО "ФИНАМ" | E155: ЗАО "ФИНАМ" | F155: ЗАО "ФИНАМ" | G155: 10343 | H155: 10343
B156: ФГ БКС | C156: ФГ БКС | D156: ФГ БКС | E156: ФГ БКС | F156: ФГ БКС | G156: 9720 | H156: 9720
B157: ВТБ 24 (ЗАО) | C157: ВТБ 24 (ЗАО) | D157: ВТБ 24 (ЗАО) | E157: ВТБ 24 (ЗАО) | F157: ВТБ 24 (ЗАО) | G157: 8056 | H157: 8056
B158: ФГ "ОТКРЫТИЕ" | C158: ФГ "ОТКРЫТИЕ" | D158: ФГ "ОТКРЫТИЕ" | E158: ФГ "ОТКРЫТИЕ" | F158: ФГ "ОТКРЫТИЕ" | G158: 6507 | H158: 6507
B159: ОАО "АЛЬФА-БАНК" | C159: ОАО "АЛЬФА-БАНК" | D159: ОАО "АЛЬФА-БАНК" | E159: ОАО "АЛЬФА-БАНК" | F159: ОАО "АЛЬФА-БАНК" | G159: 4296 | H159: 4296
B160: ООО "АТОН" | C160: ООО "АТОН" | D160: ООО "АТОН" | E160: ООО "АТОН" | F160: ООО "АТОН" | G160: 2932 | H160: 2932
B161: ГПБ (ОАО) | C161: ГПБ (ОАО) | D161: ГПБ (ОАО) | E161: ГПБ (ОАО) | F161: ГПБ (ОАО) | G161: 2071 | H161: 2071
B162: ГК "АЛОР" | C162: ГК "АЛОР" | D162: ГК "АЛОР" | E162: ГК "АЛОР" | F162: ГК "АЛОР" | G162: 1390 | H162: 1390
B163: КИТ Финанс (ООО) | C163: КИТ Финанс (ООО) | D163: КИТ Финанс (ООО) | E163: КИТ Финанс (ООО) | F163: КИТ Финанс (ООО) | G163: 1379 | H163: 1379
B166: Ведущие операторы рынка – объем клиентских операций | H166: Таблица 3
B167: (по стоимостному объему сделок, заключенных в интересах клиентов за месяц)
B168: Наименование Участника торгов | G168: Торговый оборот, руб.
B169: ФГ "ОТКРЫТИЕ" | C169: ФГ "ОТКРЫТИЕ" | D169: ФГ "ОТКРЫТИЕ" | E169: ФГ "ОТКРЫТИЕ" | F169: ФГ "ОТКРЫТИЕ" | G169: 7.703245914e+11 | H169: 7.703245914e+11
B170: ФГ БКС | C170: ФГ БКС | D170: ФГ БКС | E170: ФГ БКС | F170: ФГ БКС | G170: 6.656107417e+11 | H170: 6.656107417e+11
B171: ООО "Ренессанс Брокер" | C171: ООО "Ренессанс Брокер" | D171: ООО "Ренессанс Брокер" | E171: ООО "Ренессанс Брокер" | F171: ООО "Ренессанс Брокер" | G171: 5.703924624e+11 | H171: 5.703924624e+11
B172: Сбербанк | C172: Сбербанк | D172: Сбербанк | E172: Сбербанк | F172: Сбербанк | G172: 4.628098603e+11 | H172: 4.628098603e+11
B173: ЗАО "ФИНАМ" | C173: ЗАО "ФИНАМ" | D173: ЗАО "ФИНАМ" | E173: ЗАО "ФИНАМ" | F173: ЗАО "ФИНАМ" | G173: 2.254032711e+11 | H173: 2.254032711e+11
B174: ООО "БК РЕГИОН" | C174: ООО "БК РЕГИОН" | D174: ООО "БК РЕГИОН" | E174: ООО "БК РЕГИОН" | F174: ООО "БК РЕГИОН" | G174: 2.104609198e+11 | H174: 2.104609198e+11
B175: ОАО "Промсвязьбанк" | C175: ОАО "Промсвязьбанк" | D175: ОАО "Промсвязьбанк" | E175: ОАО "Промсвязьбанк" | F175: ОАО "Промсвязьбанк" | G175: 2.052559156e+11 | H175: 2.052559156e+11
B176: ООО "ИК ВЕЛЕС Капитал" | C176: ООО "ИК ВЕЛЕС Капитал" | D176: ООО "ИК ВЕЛЕС Капитал" | E176: ООО "ИК ВЕЛЕС Капитал" | F176: ООО "ИК ВЕЛЕС Капитал" | G176: 1.7507638e+11 | H176: 1.7507638e+11
B177: ОАО Банк "Петрокоммерц" | C177: ОАО Банк "Петрокоммерц" | D177: ОАО Банк "Петрокоммерц" | E177: ОАО Банк "Петрокоммерц" | F177: ОАО Банк "Петрокоммерц" | G177: 1.55204575e+11 | H177: 1.55204575e+11
B178: ООО "АТОН" | C178: ООО "АТОН" | D178: ООО "АТОН" | E178: ООО "АТОН" | F178: ООО "АТОН" | G178: 1.22322277e+11 | H178: 1.22322277e+11

Sheet Февраль2015
B2: Клиенты Участников торгов Фондовой биржи ММВБ
B3: 2015-02-28
B6: Динамика количества клиентов за | C6: =B3 -> 2015-02-28
B10: Количество зарегистрированных клиентов в Системе торгов (по состоянию на последний день месяца): | H10: Таблица 1
B11: Группы клиентов | E11: 2015-01-31 | F11: =EDATE(E11,1) -> 2015-02-28 | G11: Изменение (ед.) | H11: Изменение (%)
B12: Физические лица | E12: =Январь2015!F12 -> 1201812 | F12: 1165812 | G12: =F12-E12 -> -36000 | H12: =F12/E12-1 -> -0.0299547683
B13: Юридические лица | E13: =Январь2015!F13 -> 35032 | F13: 35258 | G13: =F13-E13 -> 226 | H13: 0.006451244576
B14: Нерезиденты | E14: =Январь2015!F14 -> 13040 | F14: 13101 | G14: 61 | H14: 0.00467791411
B15: Нерезиденты - физические лица | E15: =Январь2015!F15 -> 3250 | F15: 3350 | G15: 100 | H15: 0.03076923077
B16: Нерезиденты - юридические лица | E16: =Январь2015!F16 -> 9790 | F16: 9751 | G16: -39 | H16: -0.003983656793
B17: Клиенты, передавшие свои средства в ДУ | E17: =Январь2015!F17 -> 13022 | F17: 13081 | G17: 59 | H17: 0.004530794041
B18: Всего | E18: =Январь2015!F18 -> 1262906 | F18: 1227252 | G18: -35654 | H18: -0.02823171321
B21: Количество уникальных клиентов в Системе торгов (по состоянию на последний день месяца): | H21: Таблица 2
B22: Группы клиентов | E22: =E11 -> 2015-01-31 | F22: =F11 -> 2015-02-28 | G22: Изменение (ед.) | H22: Изменение (%)
B23: Физические лица | E23: =Январь2015!F23 -> 950502 | F23: 964598 | G23: =F23-E23 -> 14096 | H23: =F23/E23-1 -> 0.01483005822
B24: Юридические лица | E24: =Январь2015!F24 -> 20249 | F24: 20398 | G24: =F24-E24 -> 149 | H24: =F24/E24-1 -> 0.007358388069
B25: Нерезиденты | E25: =Январь2015!F25 -> 7537 | F25: 7683 | G25: 146 | H25: 0.01937110256
B26: Нерезиденты - физические лица | E26: =Январь2015!F26 -> 3174 | F26: 3272 | G26: 98 | H26: 0.03087586641
B27: Нерезиденты - юридические лица | E27: =Январь2015!F27 -> 4363 | F27: 4411 | G27: 48 | H27: 0.0110016044
B28: Клиенты, передавшие свои средства в ДУ | E28: =Январь2015!F28 -> 5091 | F28: 5023 | G28: -68 | H28: -0.01335690434
B29: Всего | E29: =Январь2015!F29 -> 983379 | F29: 997702 | G29: 14323 | H29: 0.0145650863
B32: Количество активных клиентов в Системе торгов (совершивших в течение месяца хотя бы одну сделку): | H32: Таблица 3
B33: Группы клиентов | E33: =E11 -> 2015-01-31 | F33: =F11 -> 2015-02-28 | G33: Изменение (ед.) | H33: Изменение (%)
B34: Физические лица | E34: =Январь2015!F34 -> 67642 | F34: 75145 | G34: =F34-E34 -> 7503 | H34: =F34/E34-1 -> 0.1109222081
B35: Юридические лица | E35: =Январь2015!F35 -> 990 | F35: 1134 | G35: 144 | H35: 0.1454545455
B36: Нерезиденты | E36: =Январь2015!F36 -> 534 | F36: 614 | G36: 80 | H36: 0.1498127341
B37: Нерезиденты - физические лица | E37: =Январь2015!F37 -> 212 | F37: 246 | G37: 34 | H37: 0.1603773585
B38: Нерезиденты - юридические лица | E38: =Январь2015!F38 -> 322 | F38: 368 | G38: 46 | H38: 0.1428571429
B39: Клиенты, передавшие свои средства в ДУ | E39: =Январь2015!F39 -> 595 | F39: 602 | G39: 7 | H39: 0.01176470588
B40: Всего | E40: =Январь2015!F40 -> 69761 | F40: 77495 | G40: 7734 | H40: 0.1108642365
B44: Изменение количества уникальных клиентов - ретроспективные данные
B48: Количество уникальных клиентов в Системе торгов (по состоянию на последний день месяца) (ежегодная статистика): | H48: Таблица 1
B49: Группы клиентов | E49: 2010-12-31 | F49: 2011-12-31 | G49: 2012-12-31 | H49: 2013-12-31 | I49: 2014-12-31
B50: Физические лица | E50: 714295 | F50: 772175 | G50: 805549 | H50: 881844 | I50: 944559
B51: Юридические лица | E51: 17170 | F51: 16850 | G51: 17821 | H51: 19539 | I51: 20178
B52: Нерезиденты | E52: 4295 | F52: 5058 | G52: 5876 | H52: 6957 | I52: 7486
B53: Клиенты, передавшие свои средства в ДУ | E53: 5348 | F53: 5242 | G53: 5261 | H53: 5182 | I53: 5142
B54: Всего | E54: 741108 | F54: 799325 | G54: 834507 | H54: 913522 | I54: 977365
B82: Количество уникальных клиентов в Системе торгов (по состоянию на последний день месяца) (за последние 6 месяцев): | H82: Таблица 2
B83: Группы клиентов | C83: =EDATE(D83,-1) -> 2014-09-28 | D83: =EDATE(E83,-1) -> 2014-10-28 | E83: =EDATE(F83,-1) -> 2014-11-28 | F83: =EDATE(G83,-1) -> 2014-12-28 | G83: =EDATE(H83,-1) -> 2015-01-28 | H83: =EDATE(E11,1) -> 2015-02-28
B84: Физические лица | C84: 913288 | D84: 916806 | E84: 922106 | F84: 945143 | G84: 950502 | H84: 964598
B85: Юридические лица | C85: 19826 | D85: 19924 | E85: 19972 | F85: 20178 | G85: 20249 | H85: 20398
B86: Нерезиденты | C86: 7329 | D86: 7349 | E86: 7365 | F86: 7486 | G86: 7537 | H86: 7683
B87: Клиенты, передавшие свои средства в ДУ | C87: 5173 | D87: 5158 | E87: 5144 | F87: 5142 | G87: 5091 | H87: 5023
B88: Всего | C88: 945616 | D88: 949237 | E88: 954587 | F88: 977949 | G88: 983379 | H88: 997702
B124: Дополнительные показатели за | C124: =B3 -> 2015-02-28
H127: Таблица 1
B128: Участники торгов | G128: Абсолютные показатели
B129: Количество Участников торгов, имеющих активных клиентов | G129: 421
B133: Списки ведущих операторов фондового рынка - клиенты Участников торгов за | F133: =C6 -> 2015-02-28
B136: Ведущие операторы рынка – число зарегистрированных клиентов | H136: Таблица 1
B137: (по общему количеству уникальных клиентов всех типов, зарегистрированных в системе торгов биржи, в том числе в течение месяца)
B138: Наименование Участника торгов | G138: Количество клиентов
B139: ВТБ 24 (ЗАО) | C139: ВТБ 24 (ЗАО) | D139: ВТБ 24 (ЗАО) | E139: ВТБ 24 (ЗАО) | F139: ВТБ 24 (ЗАО) | G139: 215241 | H139: 215241
B140: Сбербанк | C140: Сбербанк | D140: Сбербанк | E140: Сбербанк | F140: Сбербанк | G140: 180659 | H140: 180659
B141: ЗАО "ФИНАМ" | C141: ЗАО "ФИНАМ" | D141: ЗАО "ФИНАМ" | E141: ЗАО "ФИНАМ" | F141: ЗАО "ФИНАМ" | G141: 127466 | H141: 127466
B142: ФГ БКС | C142: ФГ БКС | D142: ФГ БКС | E142: ФГ БКС | F142: ФГ БКС | G142: 124684 | H142: 124684
B143: ОАО "АЛЬФА-БАНК" | C143: ОАО "АЛЬФА-БАНК" | D143: ОАО "АЛЬФА-БАНК" | E143: ОАО "АЛЬФА-БАНК" | F143: ОАО "АЛЬФА-БАНК" | G143: 62609 | H143: 62609
B144: ФГ "ОТКРЫТИЕ" | C144: ФГ "ОТКРЫТИЕ" | D144: ФГ "ОТКРЫТИЕ" | E144: ФГ "ОТКРЫТИЕ" | F144: ФГ "ОТКРЫТИЕ" | G144: 54928 | H144: 54928
B145: ООО "АТОН" | C145: ООО "АТОН" | D145: ООО "АТОН" | E145: ООО "АТОН" | F145: ООО "АТОН" | G145: 46181 | H145: 46181
B146: ГК "АЛОР" | C146: ГК "АЛОР" | D146: ГК "АЛОР" | E146: ГК "АЛОР" | F146: ГК "АЛОР" | G146: 31053 | H146: 31053
B147: КИТ Финанс (ООО) | C147: КИТ Финанс (ООО) | D147: КИТ Финанс (ООО) | E147: КИТ Финанс (ООО) | F147: КИТ Финанс (ООО) | G147: 21506 | H147: 21506
B148: ООО "Инвестиционная палата" | C148: ООО "Инвестиционная палата" | D148: ООО "Инвестиционная палата" | E148: ООО "Инвестиционная палата" | F148: ООО "Инвестиционная палата" | G148: 19762 | H148: 19762
B151: Ведущие операторы рынка – число активных клиентов | H151: Таблица 2
B152: (по количеству уникальных клиентов, совершивших хотя бы одну сделку за месяц)
B153: Наименование Участника торгов | G153: Количество клиентов
B154: Сбербанк | C154: Сбербанк | D154: Сбербанк | E154: Сбербанк | F154: Сбербанк | G154: 14659 | H154: 14659
B155: ЗАО "ФИНАМ" | C155: ЗАО "ФИНАМ" | D155: ЗАО "ФИНАМ" | E155: ЗАО "ФИНАМ" | F155: ЗАО "ФИНАМ" | G155: 11536 | H155: 11536
B156: ФГ БКС | C156: ФГ БКС | D156: ФГ БКС | E156: ФГ БКС | F156: ФГ БКС | G156: 11077 | H156: 11077
B157: ВТБ 24 (ЗАО) | C157: ВТБ 24 (ЗАО) | D157: ВТБ 24 (ЗАО) | E157: ВТБ 24 (ЗАО) | F157: ВТБ 24 (ЗАО) | G157: 9145 | H157: 9145
B158: ФГ "ОТКРЫТИЕ" | C158: ФГ "ОТКРЫТИЕ" | D158: ФГ "ОТКРЫТИЕ" | E158: ФГ "ОТКРЫТИЕ" | F158: ФГ "ОТКРЫТИЕ" | G158: 6063 | H158: 6063
B159: ОАО "АЛЬФА-БАНК" | C159: ОАО "АЛЬФА-БАНК" | D159: ОАО "АЛЬФА-БАНК" | E159: ОАО "АЛЬФА-БАНК" | F159: ОАО "АЛЬФА-БАНК" | G159: 4833 | H159: 4833
B160: ООО "АТОН" | C160: ООО "АТОН" | D160: ООО "АТОН" | E160: ООО "АТОН" | F160: ООО "АТОН" | G160: 3314 | H160: 3314
B161: ГПБ (ОАО) | C161: ГПБ (ОАО) | D161: ГПБ (ОАО) | E161: ГПБ (ОАО) | F161: ГПБ (ОАО) | G161: 2269 | H161: 2269
B162: ГК "АЛОР" | C162: ГК "АЛОР" | D162: ГК "АЛОР" | E162: ГК "АЛОР" | F162: ГК "АЛОР" | G162: 1545 | H162: 1545
B163: КИТ Финанс (ООО) | C163: КИТ Финанс (ООО) | D163: КИТ Финанс (ООО) | E163: КИТ Финанс (ООО) | F163: КИТ Финанс (ООО) | G163: 1525 | H163: 1525
B166: Ведущие операторы рынка – объем клиентских операций | H166: Таблица 3
B167: (по стоимостному объему сделок, заключенных в интересах клиентов за месяц)
B168: Наименование Участника торгов | G168: Торговый оборот, руб.
B169: ФГ "ОТКРЫТИЕ" | C169: ФГ "ОТКРЫТИЕ" | D169: ФГ "ОТКРЫТИЕ" | E169: ФГ "ОТКРЫТИЕ" | F169: ФГ "ОТКРЫТИЕ" | G169: 1.393512095e+12 | H169: 1.393512095e+12
B170: ООО "Ренессанс Брокер" | C170: ООО "Ренессанс Брокер" | D170: ООО "Ренессанс Брокер" | E170: ООО "Ренессанс Брокер" | F170: ООО "Ренессанс Брокер" | G170: 9.494830606e+11 | H170: 9.494830606e+11
B171: ФГ БКС | C171: ФГ БКС | D171: ФГ БКС | E171: ФГ БКС | F171: ФГ БКС | G171: 9.130580068e+11 | H171: 9.130580068e+11
B172: Сбербанк | C172: Сбербанк | D172: Сбербанк | E172: Сбербанк | F172: Сбербанк | G172: 7.675085198e+11 | H172: 7.675085198e+11
B173: ООО "БК РЕГИОН" | C173: ООО "БК РЕГИОН" | D173: ООО "БК РЕГИОН" | E173: ООО "БК РЕГИОН" | F173: ООО "БК РЕГИОН" | G173: 3.700119439e+11 | H173: 3.700119439e+11
B174: ООО "ИК ВЕЛЕС Капитал" | C174: ООО "ИК ВЕЛЕС Капитал" | D174: ООО "ИК ВЕЛЕС Капитал" | E174: ООО "ИК ВЕЛЕС Капитал" | F174: ООО "ИК ВЕЛЕС Капитал" | G174: 3.016094643e+11 | H174: 3.016094643e+11
B175: ЗАО "ФИНАМ" | C175: ЗАО "ФИНАМ" | D175: ЗАО "ФИНАМ" | E175: ЗАО "ФИНАМ" | F175: ЗАО "ФИНАМ" | G175: 2.702476623e+11 | H175: 2.702476623e+11
B176: ОАО "Промсвязьбанк" | C176: ОАО "Промсвязьбанк" | D176: ОАО "Промсвязьбанк" | E176: ОАО "Промсвязьбанк" | F176: ОАО "Промсвязьбанк" | G176: 2.6578963e+11 | H176: 2.6578963e+11
B177: ОАО Банк "Петрокоммерц" | C177: ОАО Банк "Петрокоммерц" | D177: ОАО Банк "Петрокоммерц" | E177: ОАО Банк "Петрокоммерц" | F177: ОАО Банк "Петрокоммерц" | G177: 2.070489916e+11 | H177: 2.070489916e+11
B178: ГК "АЛОР" | C178: ГК "АЛОР" | D178: ГК "АЛОР" | E178: ГК "АЛОР" | F178: ГК "АЛОР" | G178: 1.617448424e+11 | H178: 1.617448424e+11

Sheet Март2015
B2: Клиенты Участников торгов Фондовой биржи ММВБ
B3: 2015-03-31
B6: Динамика количества клиентов за | C6: =B3 -> 2015-03-31
B10: Количество зарегистрированных клиентов в Системе торгов (по состоянию на последний день месяца): | H10: Таблица 1
B11: Группы клиентов | E11: 2015-02-28 | F11: =EDATE(E11,1) -> 2015-03-28 | G11: Изменение (ед.) | H11: Изменение (%)
B12: Физические лица | E12: =Февраль2015!F12 -> 1165812 | F12: 1171185 | G12: =F12-E12 -> 5373 | H12: =F12/E12-1 -> 0.00460880485
B13: Юридические лица | E13: =Февраль2015!F13 -> 35258 | F13: 35547 | G13: =F13-E13 -> 289 | H13: 0.008196721311
B14: Нерезиденты | E14: =Февраль2015!F14 -> 13101 | F14: 13591 | G14: 490 | H14: 0.03740172506
B15: Нерезиденты - физические лица | E15: =Февраль2015!F15 -> 3350 | F15: 3434 | G15: 84 | H15: 0.02507462687
B16: Нерезиденты - юридические лица | E16: =Февраль2015!F16 -> 9751 | F16: 10157 | G16: 406 | H16: 0.0416367552
B17: Клиенты, передавшие свои средства в ДУ | E17: =Февраль2015!F17 -> 13081 | F17: 13329 | G17: 248 | H17: 0.0189587952
B18: Всего | E18: =Февраль2015!F18 -> 1227252 | F18: 1233652 | G18: 6400 | H18: 0.005214902889
B21: Количество уникальных клиентов в Системе торгов (по состоянию на последний день месяца): | H21: Таблица 2
B22: Группы клиентов | E22: =E11 -> 2015-02-28 | F22: =F11 -> 2015-03-28 | G22: Изменение (ед.) | H22: Изменение (%)
B23: Физические лица | E23: =Февраль2015!F23 -> 964598 | F23: 965577 | G23: =F23-E23 -> 979 | H23: =F23/E23-1 -> 0.001014930572
B24: Юридические лица | E24: =Февраль2015!F24 -> 20398 | F24: 20587 | G24: =F24-E24 -> 189 | H24: =F24/E24-1 -> 0.009265614276
B25: Нерезиденты | E25: =Февраль2015!F25 -> 7683 | F25: 8231 | G25: 548 | H25: 0.07132630483
B26: Нерезиденты - физические лица | E26: =Февраль2015!F26 -> 3272 | F26: 3345 | G26: 73 | H26: 0.02231051345
B27: Нерезиденты - юридические лица | E27: =Февраль2015!F27 -> 4411 | F27: 4886 | G27: 475 | H27: 0.1076853321
B28: Клиенты, передавшие свои средства в ДУ | E28: =Февраль2015!F28 -> 5023 | F28: 5043 | G28: 20 | H28: 0.003981684252
B29: Всего | E29: =Февраль2015!F29 -> 997702 | F29: 999438 | G29: 1736 | H29: 0.001739998517
B32: Количество активных клиентов в Системе торгов (совершивших в течение месяца хотя бы одну сделку): | H32: Таблица 3
B33: Группы клиентов | E33: =E11 -> 2015-02-28 | F33: =F11 -> 2015-03-28 | G33: Изменение (ед.) | H33: Изменение (%)
B34: Физические лица | E34: =Февраль2015!F34 -> 75145 | F34: 72982 | G34: =F34-E34 -> -2163 | H34: =F34/E34-1 -> -0.02878435026
B35: Юридические лица | E35: =Февраль2015!F35 -> 1134 | F35: 1165 | G35: 31 | H35: 0.02733686067
B36: Нерезиденты | E36: =Февраль2015!F36 -> 614 | F36: 632 | G36: 18 | H36: 0.02931596091
B37: Нерезиденты - физические лица | E37: =Февраль2015!F37 -> 246 | F37: 252 | G37: 6 | H37: 0.0243902439
B38: Нерезиденты - юридические лица | E38: =Февраль2015!F38 -> 368 | F38: 380 | G38: 12 | H38: 0.03260869565
B39: Клиенты, передавшие свои средства в ДУ | E39: =Февраль2015!F39 -> 602 | F39: 524 | G39: -78 | H39: -0.1295681063
B40: Всего | E40: =Февраль2015!F40 -> 77495 | F40: 75303 | G40: -2192 | H40: -0.02828569585
B44: Изменение количества уникальных клиентов - ретроспективные данные
B48: Количество уникальных клиентов в Системе торгов (по состоянию на последний день месяца) (ежегодная статистика): | H48: Таблица 1
B49: Группы клиентов | E49: 2010-12-31 | F49: 2011-12-31 | G49: 2012-12-31 | H49: 2013-12-31 | I49: 2014-12-31
B50: Физические лица | E50: 714295 | F50: 772175 | G50: 805549 | H50: 881844 | I50: 944559
B51: Юридические лица | E51: 17170 | F51: 16850 | G51: 17821 | H51: 19539 | I51: 20178
B52: Нерезиденты | E52: 4295 | F52: 5058 | G52: 5876 | H52: 6957 | I52: 7486
B53: Клиенты, передавшие свои средства в ДУ | E53: 5348 | F53: 5242 | G53: 5261 | H53: 5182 | I53: 5142
B54: Всего | E54: 741108 | F54: 799325 | G54: 834507 | H54: 913522 | I54: 977365
B82: Количество уникальных клиентов в Системе торгов (по состоянию на последний день месяца) (за последние 6 месяцев): | H82: Таблица 2
B83: Группы клиентов | C83: =EDATE(D83,-1) -> 2014-10-28 | D83: =EDATE(E83,-1) -> 2014-11-28 | E83: =EDATE(F83,-1) -> 2014-12-28 | F83: =EDATE(G83,-1) -> 2015-01-28 | G83: =EDATE(H83,-1) -> 2015-02-28 | H83: =EDATE(E11,1) -> 2015-03-28
B84: Физические лица | C84: 916806 | D84: 922106 | E84: 945143 | F84: 950502 | G84: 964598 | H84: 965577
B85: Юридические лица | C85: 19924 | D85: 19972 | E85: 20178 | F85: 20249 | G85: 20398 | H85: 20587
B86: Нерезиденты | C86: 7349 | D86: 7365 | E86: 7486 | F86: 7537 | G86: 7683 | H86: 8231
B87: Клиенты, передавшие свои средства в ДУ | C87: 5158 | D87: 5144 | E87: 5142 | F87: 5091 | G87: 5023 | H87: 5043
B88: Всего | C88: 949237 | D88: 954587 | E88: 977949 | F88: 983379 | G88: 997702 | H88: 999438
B124: Дополнительные показатели за | C124: =B3 -> 2015-03-31
H127: Таблица 1
B128: Участники торгов | G128: Абсолютные показатели
B129: Количество Участников торгов, имеющих активных клиентов | G129: 430
B133: Списки ведущих операторов фондового рынка - клиенты Участников торгов за | F133: =C6 -> 2015-03-31
B136: Ведущие операторы рынка – число зарегистрированных клиентов | H136: Таблица 1
B137: (по общему количеству уникальных клиентов всех типов, зарегистрированных в системе торгов биржи, в том числе в течение месяца)
B138: Наименование Участника торгов | G138: Количество клиентов
B139: ВТБ 24 (ПАО) | C139: ВТБ 24 (ПАО) | D139: ВТБ 24 (ПАО) | E139: ВТБ 24 (ПАО) | F139: ВТБ 24 (ПАО) | G139: 216932 | H139: 216932
B140: Сбербанк | C140: Сбербанк | D140: Сбербанк | E140: Сбербанк | F140: Сбербанк | G140: 181251 | H140: 181251
B141: АО "ФИНАМ" | C141: АО "ФИНАМ" | D141: АО "ФИНАМ" | E141: АО "ФИНАМ" | F141: АО "ФИНАМ" | G141: 128529 | H141: 128529
B142: ФГ БКС | C142: ФГ БКС | D142: ФГ БКС | E142: ФГ БКС | F142: ФГ БКС | G142: 125922 | H142: 125922
B143: АО "АЛЬФА-БАНК" | C143: АО "АЛЬФА-БАНК" | D143: АО "АЛЬФА-БАНК" | E143: АО "АЛЬФА-БАНК" | F143: АО "АЛЬФА-БАНК" | G143: 62892 | H143: 62892
B144: ФГ "ОТКРЫТИЕ" | C144: ФГ "ОТКРЫТИЕ" | D144: ФГ "ОТКРЫТИЕ" | E144: ФГ "ОТКРЫТИЕ" | F144: ФГ "ОТКРЫТИЕ" | G144: 56455 | H144: 56455
B145: ООО "АТОН" | C145: ООО "АТОН" | D145: ООО "АТОН" | E145: ООО "АТОН" | F145: ООО "АТОН" | G145: 46427 | H145: 46427
B146: ГК "АЛОР" | C146: ГК "АЛОР" | D146: ГК "АЛОР" | E146: ГК "АЛОР" | F146: ГК "АЛОР" | G146: 31124 | H146: 31124
B147: КИТ Финанс (ООО) | C147: КИТ Финанс (ООО) | D147: КИТ Финанс (ООО) | E147: КИТ Финанс (ООО) | F147: КИТ Финанс (ООО) | G147: 21635 | H147: 21635
B148: ООО "Инвестиционная палата" | C148: ООО "Инвестиционная палата" | D148: ООО "Инвестиционная палата" | E148: ООО "Инвестиционная палата" | F148: ООО "Инвестиционная палата" | G148: 19775 | H148: 19775
B151: Ведущие операторы рынка – число активных клиентов | H151: Таблица 2
B152: (по количеству уникальных клиентов, совершивших хотя бы одну сделку за месяц)
B153: Наименование Участника торгов | G153: Количество клиентов
B154: Сбербанк | C154: Сбербанк | D154: Сбербанк | E154: Сбербанк | F154: Сбербанк | G154: 13600 | H154: 13600
B155: АО "ФИНАМ" | C155: АО "ФИНАМ" | D155: АО "ФИНАМ" | E155: АО "ФИНАМ" | F155: АО "ФИНАМ" | G155: 11136 | H155: 11136
B156: ФГ БКС | C156: ФГ БКС | D156: ФГ БКС | E156: ФГ БКС | F156: ФГ БКС | G156: 11015 | H156: 11015
B157: ВТБ 24 (ПАО) | C157: ВТБ 24 (ПАО) | D157: ВТБ 24 (ПАО) | E157: ВТБ 24 (ПАО) | F157: ВТБ 24 (ПАО) | G157: 9514 | H157: 9514
B158: ФГ "ОТКРЫТИЕ" | C158: ФГ "ОТКРЫТИЕ" | D158: ФГ "ОТКРЫТИЕ" | E158: ФГ "ОТКРЫТИЕ" | F158: ФГ "ОТКРЫТИЕ" | G158: 6267 | H158: 6267
B159: АО "АЛЬФА-БАНК" | C159: АО "АЛЬФА-БАНК" | D159: АО "АЛЬФА-БАНК" | E159: АО "АЛЬФА-БАНК" | F159: АО "АЛЬФА-БАНК" | G159: 4552 | H159: 4552
B160: ООО "АТОН" | C160: ООО "АТОН" | D160: ООО "АТОН" | E160: ООО "АТОН" | F160: ООО "АТОН" | G160: 3148 | H160: 3148
B161: Банк ГПБ (АО) | C161: Банк ГПБ (АО) | D161: Банк ГПБ (АО) | E161: Банк ГПБ (АО) | F161: Банк ГПБ (АО) | G161: 2159 | H161: 2159
B162: КИТ Финанс (ООО) | C162: КИТ Финанс (ООО) | D162: КИТ Финанс (ООО) | E162: КИТ Финанс (ООО) | F162: КИТ Финанс (ООО) | G162: 1493 | H162: 1493
B163: ГК "АЛОР" | C163: ГК "АЛОР" | D163: ГК "АЛОР" | E163: ГК "АЛОР" | F163: ГК "АЛОР" | G163: 1473 | H163: 1473
B166: Ведущие операторы рынка – объем клиентских операций | H166: Таблица 3
B167: (по стоимостному объему сделок, заключенных в интересах клиентов за месяц)
B168: Наименование Участника торгов | G168: Торговый оборот, руб.
B169: ФГ "ОТКРЫТИЕ" | C169: ФГ "ОТКРЫТИЕ" | D169: ФГ "ОТКРЫТИЕ" | E169: ФГ "ОТКРЫТИЕ" | F169: ФГ "ОТКРЫТИЕ" | G169: 2.131935552e+12 | H169: 2.131935552e+12
B170: Сбербанк | C170: Сбербанк | D170: Сбербанк | E170: Сбербанк | F170: Сбербанк | G170: 1.046140864e+12 | H170: 1.046140864e+12
B171: ООО "Ренессанс Брокер" | C171: ООО "Ренессанс Брокер" | D171: ООО "Ренессанс Брокер" | E171: ООО "Ренессанс Брокер" | F171: ООО "Ренессанс Брокер" | G171: 1.044663184e+12 | H171: 1.044663184e+12
B172: ФГ БКС | C172: ФГ БКС | D172: ФГ БКС | E172: ФГ БКС | F172: ФГ БКС | G172: 1.034276166e+12 | H172: 1.034276166e+12
B173: ООО "БК РЕГИОН" | C173: ООО "БК РЕГИОН" | D173: ООО "БК РЕГИОН" | E173: ООО "БК РЕГИОН" | F173: ООО "БК РЕГИОН" | G173: 3.295005666e+11 | H173: 3.295005666e+11
B174: ООО "ИК ВЕЛЕС Капитал" | C174: ООО "ИК ВЕЛЕС Капитал" | D174: ООО "ИК ВЕЛЕС Капитал" | E174: ООО "ИК ВЕЛЕС Капитал" | F174: ООО "ИК ВЕЛЕС Капитал" | G174: 3.099784256e+11 | H174: 3.099784256e+11
B175: ПАО "Промсвязьбанк" | C175: ПАО "Промсвязьбанк" | D175: ПАО "Промсвязьбанк" | E175: ПАО "Промсвязьбанк" | F175: ПАО "Промсвязьбанк" | G175: 2.787032554e+11 | H175: 2.787032554e+11
B176: АО "ФИНАМ" | C176: АО "ФИНАМ" | D176: АО "ФИНАМ" | E176: АО "ФИНАМ" | F176: АО "ФИНАМ" | G176: 2.756791109e+11 | H176: 2.756791109e+11
B177: ООО "АТОН" | C177: ООО "АТОН" | D177: ООО "АТОН" | E177: ООО "АТОН" | F177: ООО "АТОН" | G177: 2.458254591e+11 | H177: 2.458254591e+11
B178: ООО "РОНИН" | C178: ООО "РОНИН" | D178: ООО "РОНИН" | E178: ООО "РОНИН" | F178: ООО "РОНИН" | G178: 1.849937585e+11 | H178: 1.849937585e+11

Sheet Апрель2015
B2: Клиенты Участников торгов Фондовой биржи ММВБ
B3: 2015-04-30
B6: Динамика количества клиентов за | C6: =B3 -> 2015-04-30
B10: Количество зарегистрированных клиентов в Системе торгов (по состоянию на последний день месяца): | H10: Таблица 1
B11: Группы клиентов | E11: 2015-03-31 | F11: =EDATE(E11,1) -> 2015-04-30 | G11: Изменение (ед.) | H11: Изменение (%)
B12: Физические лица | E12: =Март2015!F12 -> 1171185 | F12: 1184558 | G12: =F12-E12 -> 13373 | H12: =F12/E12-1 -> 0.01141834979
B13: Юридические лица | E13: =Март2015!F13 -> 35547 | F13: 35683 | G13: =F13-E13 -> 136 | H13: 0.003825920612
B14: Нерезиденты | E14: =Март2015!F14 -> 13591 | F14: 13593 | G14: 2 | H14: 0.0001471562063
B15: Нерезиденты - физические лица | E15: =Март2015!F15 -> 3434 | F15: 3526 | G15: 92 | H15: 0.02679091439
B16: Нерезиденты - юридические лица | E16: =Март2015!F16 -> 10157 | F16: 10067 | G16: -90 | H16: -0.008860884119
B17: Клиенты, передавшие свои средства в ДУ | E17: =Март2015!F17 -> 13329 | F17: 13853 | G17: 524 | H17: 0.03931277665
B18: Всего | E18: =Март2015!F18 -> 1233652 | F18: 1247687 | G18: 14035 | H18: 0.01137679021
B21: Количество уникальных клиентов в Системе торгов (по состоянию на последний день месяца): | H21: Таблица 2
B22: Группы клиентов | E22: =E11 -> 2015-03-31 | F22: =F11 -> 2015-04-30 | G22: Изменение (ед.) | H22: Изменение (%)
B23: Физические лица | E23: =Март2015!F23 -> 965577 | F23: 971876 | G23: =F23-E23 -> 6299 | H23: =F23/E23-1 -> 0.006523560524
B24: Юридические лица | E24: =Март2015!F24 -> 20587 | F24: 20753 | G24: =F24-E24 -> 166 | H24: =F24/E24-1 -> 0.008063340943
B25: Нерезиденты | E25: =Март2015!F25 -> 8231 | F25: 8355 | G25: 124 | H25: 0.01506499818
B26: Нерезиденты - физические лица | E26: =Март2015!F26 -> 3345 | F26: 3435 | G26: 90 | H26: 0.0269058296
B27: Нерезиденты - юридические лица | E27: =Март2015!F27 -> 4886 | F27: 4920 | G27: 34 | H27: 0.006958657388
B28: Клиенты, передавшие свои средства в ДУ | E28: =Март2015!F28 -> 5043 | F28: 4971 | G28: -72 | H28: -0.01427721594
B29: Всего | E29: =Март2015!F29 -> 999438 | F29: 1005955 | G29: 6517 | H29: 0.006520664614
B32: Количество активных клиентов в Системе торгов (совершивших в течение месяца хотя бы одну сделку): | H32: Таблица 3
B33: Группы клиентов | E33: =E11 -> 2015-03-31 | F33: =F11 -> 2015-04-30 | G33: Изменение (ед.) | H33: Изменение (%)
B34: Физические лица | E34: =Март2015!F34 -> 72982 | F34: 72144 | G34: =F34-E34 -> -838 | H34: =F34/E34-1 -> -0.0114822833
B35: Юридические лица | E35: =Март2015!F35 -> 1165 | F35: 1177 | G35: 12 | H35: 0.01030042918
B36: Нерезиденты | E36: =Март2015!F36 -> 632 | F36: 613 | G36: -19 | H36: -0.03006329114
B37: Нерезиденты - физические лица | E37: =Март2015!F37 -> 252 | F37: 245 | G37: -7 | H37: -0.02777777778
B38: Нерезиденты - юридические лица | E38: =Март2015!F38 -> 380 | F38: 368 | G38: -12 | H38: -0.03157894737
B39: Клиенты, передавшие свои средства в ДУ | E39: =Март2015!F39 -> 524 | F39: 582 | G39: 58 | H39: 0.1106870229
B40: Всего | E40: =Март2015!F40 -> 75303 | F40: 74516 | G40: -787 | H40: -0.01045111085
B44: Изменение количества уникальных клиентов - ретроспективные данные
B48: Количество уникальных клиентов в Системе торгов (по состоянию на последний день месяца) (ежегодная статистика): | H48: Таблица 1
B49: Группы клиентов | E49: 2010-12-31 | F49: 2011-12-31 | G49: 2012-12-31 | H49: 2013-12-31 | I49: 2014-12-31
B50: Физические лица | E50: 714295 | F50: 772175 | G50: 805549 | H50: 881844 | I50: 944559
B51: Юридические лица | E51: 17170 | F51: 16850 | G51: 17821 | H51: 19539 | I51: 20178
B52: Нерезиденты | E52: 4295 | F52: 5058 | G52: 5876 | H52: 6957 | I52: 7486
B53: Клиенты, передавшие свои средства в ДУ | E53: 5348 | F53: 5242 | G53: 5261 | H53: 5182 | I53: 5142
B54: Всего | E54: 741108 | F54: 799325 | G54: 834507 | H54: 913522 | I54: 977365
B82: Количество уникальных клиентов в Системе торгов (по состоянию на последний день месяца) (за последние 6 месяцев): | H82: Таблица 2
B83: Группы клиентов | C83: =EDATE(D83,-1) -> 2014-11-28 | D83: =EDATE(E83,-1) -> 2014-12-28 | E83: =EDATE(F83,-1) -> 2015-01-28 | F83: =EDATE(G83,-1) -> 2015-02-28 | G83: =EDATE(H83,-1) -> 2015-03-30 | H83: =EDATE(E11,1) -> 2015-04-30
B84: Физические лица | C84: 922106 | D84: 945143 | E84: 950502 | F84: 964598 | G84: 965577 | H84: 971876
B85: Юридические лица | C85: 19972 | D85: 20178 | E85: 20249 | F85: 20398 | G85: 20587 | H85: 20753
B86: Нерезиденты | C86: 7365 | D86: 7486 | E86: 7537 | F86: 7683 | G86: 8231 | H86: 8355
B87: Клиенты, передавшие свои средства в ДУ | C87: 5144 | D87: 5142 | E87: 5091 | F87: 5023 | G87: 5043 | H87: 4971
B88: Всего | C88: 954587 | D88: 977949 | E88: 983379 | F88: 997702 | G88: 999438 | H88: 1005955
B124: Дополнительные показатели за | C124: =B3 -> 2015-04-30
H127: Таблица 1
B128: Участники торгов | G128: Абсолютные показатели
B129: Количество Участников торгов, имеющих активных клиентов | G129: 422
B133: Списки ведущих операторов фондового рынка - клиенты Участников торгов за | F133: =C6 -> 2015-04-30
B136: Ведущие операторы рынка – число зарегистрированных клиентов | H136: Таблица 1
B137: (по общему количеству уникальных клиентов всех типов, зарегистрированных в системе торгов биржи, в том числе в течение месяца)
B138: Наименование Участника торгов | G138: Количество клиентов
B139: ВТБ 24 (ПАО) | C139: ВТБ 24 (ПАО) | D139: ВТБ 24 (ПАО) | E139: ВТБ 24 (ПАО) | F139: ВТБ 24 (ПАО) | G139: 218580 | H139: 218580
B140: Сбербанк | C140: Сбербанк | D140: Сбербанк | E140: Сбербанк | F140: Сбербанк | G140: 182036 | H140: 182036
B141: АО "ФИНАМ" | C141: АО "ФИНАМ" | D141: АО "ФИНАМ" | E141: АО "ФИНАМ" | F141: АО "ФИНАМ" | G141: 129757 | H141: 129757
B142: ФГ БКС | C142: ФГ БКС | D142: ФГ БКС | E142: ФГ БКС | F142: ФГ БКС | G142: 127241 | H142: 127241
B143: АО "АЛЬФА-БАНК" | C143: АО "АЛЬФА-БАНК" | D143: АО "АЛЬФА-БАНК" | E143: АО "АЛЬФА-БАНК" | F143: АО "АЛЬФА-БАНК" | G143: 63139 | H143: 63139
B144: ФГ "ОТКРЫТИЕ" | C144: ФГ "ОТКРЫТИЕ" | D144: ФГ "ОТКРЫТИЕ" | E144: ФГ "ОТКРЫТИЕ" | F144: ФГ "ОТКРЫТИЕ" | G144: 58051 | H144: 58051
B145: ООО "АТОН" | C145: ООО "АТОН" | D145: ООО "АТОН" | E145: ООО "АТОН" | F145: ООО "АТОН" | G145: 46605 | H145: 46605
B146: ГК "АЛОР" | C146: ГК "АЛОР" | D146: ГК "АЛОР" | E146: ГК "АЛОР" | F146: ГК "АЛОР" | G146: 31204 | H146: 31204
B147: КИТ Финанс (ООО) | C147: КИТ Финанс (ООО) | D147: КИТ Финанс (ООО) | E147: КИТ Финанс (ООО) | F147: КИТ Финанс (ООО) | G147: 21743 | H147: 21743
B148: ООО "Инвестиционная палата" | C148: ООО "Инвестиционная палата" | D148: ООО "Инвестиционная палата" | E148: ООО "Инвестиционная палата" | F148: ООО "Инвестиционная палата" | G148: 19789 | H148: 19789
B151: Ведущие операторы рынка – число активных клиентов | H151: Таблица 2
B152: (по количеству уникальных клиентов, совершивших хотя бы одну сделку за месяц)
B153: Наименование Участника торгов | G153: Количество клиентов
B154: Сбербанк | C154: Сбербанк | D154: Сбербанк | E154: Сбербанк | F154: Сбербанк | G154: 13334 | H154: 13334
B155: АО "ФИНАМ" | C155: АО "ФИНАМ" | D155: АО "ФИНАМ" | E155: АО "ФИНАМ" | F155: АО "ФИНАМ" | G155: 10965 | H155: 10965
B156: ФГ БКС | C156: ФГ БКС | D156: ФГ БКС | E156: ФГ БКС | F156: ФГ БКС | G156: 10800 | H156: 10800
B157: ВТБ 24 (ПАО) | C157: ВТБ 24 (ПАО) | D157: ВТБ 24 (ПАО) | E157: ВТБ 24 (ПАО) | F157: ВТБ 24 (ПАО) | G157: 10095 | H157: 10095
B158: ФГ "ОТКРЫТИЕ" | C158: ФГ "ОТКРЫТИЕ" | D158: ФГ "ОТКРЫТИЕ" | E158: ФГ "ОТКРЫТИЕ" | F158: ФГ "ОТКРЫТИЕ" | G158: 6187 | H158: 6187
B159: АО "АЛЬФА-БАНК" | C159: АО "АЛЬФА-БАНК" | D159: АО "АЛЬФА-БАНК" | E159: АО "АЛЬФА-БАНК" | F159: АО "АЛЬФА-БАНК" | G159: 4446 | H159: 4446
B160: ООО "АТОН" | C160: ООО "АТОН" | D160: ООО "АТОН" | E160: ООО "АТОН" | F160: ООО "АТОН" | G160: 3043 | H160: 3043
B161: Банк ГПБ (АО) | C161: Банк ГПБ (АО) | D161: Банк ГПБ (АО) | E161: Банк ГПБ (АО) | F161: Банк ГПБ (АО) | G161: 2194 | H161: 2194
B162: КИТ Финанс (ООО) | C162: КИТ Финанс (ООО) | D162: КИТ Финанс (ООО) | E162: КИТ Финанс (ООО) | F162: КИТ Финанс (ООО) | G162: 1494 | H162: 1494
B163: ГК "АЛОР" | C163: ГК "АЛОР" | D163: ГК "АЛОР" | E163: ГК "АЛОР" | F163: ГК "АЛОР" | G163: 1344 | H163: 1344
B166: Ведущие операторы рынка – объем клиентских операций | H166: Таблица 3
B167: (по стоимостному объему сделок, заключенных в интересах клиентов за месяц)
B168: Наименование Участника торгов | G168: Торговый оборот, руб.
B169: ФГ "ОТКРЫТИЕ" | C169: ФГ "ОТКРЫТИЕ" | D169: ФГ "ОТКРЫТИЕ" | E169: ФГ "ОТКРЫТИЕ" | F169: ФГ "ОТКРЫТИЕ" | G169: 2.514078143e+12 | H169: 2.514078143e+12
B170: ФГ БКС | C170: ФГ БКС | D170: ФГ БКС | E170: ФГ БКС | F170: ФГ БКС | G170: 1.199236604e+12 | H170: 1.199236604e+12
B171: ООО "Ренессанс Брокер" | C171: ООО "Ренессанс Брокер" | D171: ООО "Ренессанс Брокер" | E171: ООО "Ренессанс Брокер" | F171: ООО "Ренессанс Брокер" | G171: 1.020585398e+12 | H171: 1.020585398e+12
B172: Сбербанк | C172: Сбербанк | D172: Сбербанк | E172: Сбербанк | F172: Сбербанк | G172: 9.93667449e+11 | H172: 9.93667449e+11
B173: ООО "БК РЕГИОН" | C173: ООО "БК РЕГИОН" | D173: ООО "БК РЕГИОН" | E173: ООО "БК РЕГИОН" | F173: ООО "БК РЕГИОН" | G173: 3.888178266e+11 | H173: 3.888178266e+11
B174: ООО "ИК ВЕЛЕС Капитал" | C174: ООО "ИК ВЕЛЕС Капитал" | D174: ООО "ИК ВЕЛЕС Капитал" | E174: ООО "ИК ВЕЛЕС Капитал" | F174: ООО "ИК ВЕЛЕС Капитал" | G174: 3.643049793e+11 | H174: 3.643049793e+11
B175: ПАО "Промсвязьбанк" | C175: ПАО "Промсвязьбанк" | D175: ПАО "Промсвязьбанк" | E175: ПАО "Промсвязьбанк" | F175: ПАО "Промсвязьбанк" | G175: 3.19894304e+11 | H175: 3.19894304e+11
B176: АО "ФИНАМ" | C176: АО "ФИНАМ" | D176: АО "ФИНАМ" | E176: АО "ФИНАМ" | F176: АО "ФИНАМ" | G176: 3.088454445e+11 | H176: 3.088454445e+11
B177: ООО "РОНИН" | C177: ООО "РОНИН" | D177: ООО "РОНИН" | E177: ООО "РОНИН" | F177: ООО "РОНИН" | G177: 2.006593712e+11 | H177: 2.006593712e+11
B178: ООО "АТОН" | C178: ООО "АТОН" | D178: ООО "АТОН" | E178: ООО "АТОН" | F178: ООО "АТОН" | G178: 2.004493274e+11 | H178: 2.004493274e+11

Sheet Май2015
B2: Клиенты Участников торгов Фондовой биржи ММВБ
B3: 2015-05-31
B6: Динамика количества клиентов за | C6: =B3 -> 2015-05-31
B10: Количество зарегистрированных клиентов в Системе торгов (по состоянию на последний день месяца): | H10: Таблица 1
B11: Группы клиентов | E11: 2015-04-30 | F11: =EDATE(E11,1) -> 2015-05-30 | G11: Изменение (ед.) | H11: Изменение (%)
B12: Физические лица | E12: =Апрель2015!F12 -> 1184558 | F12: 1193334 | G12: =F12-E12 -> 8776 | H12: =F12/E12-1 -> 0.007408670576
B13: Юридические лица | E13: =Апрель2015!F13 -> 35683 | F13: 35680 | G13: =F13-E13 -> -3 | H13: -8.407364852e-05
B14: Нерезиденты | E14: =Апрель2015!F14 -> 13593 | F14: 13121 | G14: -472 | H14: -0.03472375487
B15: Нерезиденты - физические лица | E15: =Апрель2015!F15 -> 3526 | F15: 3602 | G15: 76 | H15: 0.02155416903
B16: Нерезиденты - юридические лица | E16: =Апрель2015!F16 -> 10067 | F16: 9519 | G16: -548 | H16: -0.0544352836
B17: Клиенты, передавшие свои средства в ДУ | E17: =Апрель2015!F17 -> 13853 | F17: 14247 | G17: 394 | H17: 0.02844149282
B18: Всего | E18: =Апрель2015!F18 -> 1247687 | F18: 1256382 | G18: 8695 | H18: 0.006968895244
B21: Количество уникальных клиентов в Системе торгов (по состоянию на последний день месяца): | H21: Таблица 2
B22: Группы клиентов | E22: =E11 -> 2015-04-30 | F22: =F11 -> 2015-05-30 | G22: Изменение (ед.) | H22: Изменение (%)
B23: Физические лица | E23: =Апрель2015!F23 -> 971876 | F23: 975467 | G23: =F23-E23 -> 3591 | H23: =F23/E23-1 -> 0.003694915812
B24: Юридические лица | E24: =Апрель2015!F24 -> 20753 | F24: 20771 | G24: =F24-E24 -> 18 | H24: =F24/E24-1 -> 0.0008673444803
B25: Нерезиденты | E25: =Апрель2015!F25 -> 8355 | F25: 8400 | G25: 45 | H25: 0.005385996409
B26: Нерезиденты - физические лица | E26: =Апрель2015!F26 -> 3435 | F26: 3500 | G26: 65 | H26: 0.01892285298
B27: Нерезиденты - юридические лица | E27: =Апрель2015!F27 -> 4920 | F27: 4900 | G27: -20 | H27: -0.00406504065
B28: Клиенты, передавшие свои средства в ДУ | E28: =Апрель2015!F28 -> 4971 | F28: 4915 | G28: -56 | H28: -0.01126533897
B29: Всего | E29: =Апрель2015!F29 -> 1005955 | F29: 1009553 | G29: 3598 | H29: 0.003576700747
B32: Количество активных клиентов в Системе торгов (совершивших в течение месяца хотя бы одну сделку): | H32: Таблица 3
B33: Группы клиентов | E33: =E11 -> 2015-04-30 | F33: =F11 -> 2015-05-30 | G33: Изменение (ед.) | H33: Изменение (%)
B34: Физические лица | E34: =Апрель2015!F34 -> 72144 | F34: 63813 | G34: =F34-E34 -> -8331 | H34: =F34/E34-1 -> -0.1154773786
B35: Юридические лица | E35: =Апрель2015!F35 -> 1177 | F35: 1008 | G35: -169 | H35: -0.1435853866
B36: Нерезиденты | E36: =Апрель2015!F36 -> 613 | F36: 537 | G36: -76 | H36: -0.1239804241
B37: Нерезиденты - физические лица | E37: =Апрель2015!F37 -> 245 | F37: 225 | G37: -20 | H37: -0.08163265306
B38: Нерезиденты - юридические лица | E38: =Апрель2015!F38 -> 368 | F38: 312 | G38: -56 | H38: -0.152173913
B39: Клиенты, передавшие свои средства в ДУ | E39: =Апрель2015!F39 -> 582 | F39: 477 | G39: -105 | H39: -0.1804123711
B40: Всего | E40: 81527 | F40: 65835 | G40: -15692 | H40: -0.1924761122
B44: Изменение количества уникальных клиентов - ретроспективные данные
B48: Количество уникальных клиентов в Системе торгов (по состоянию на последний день месяца) (ежегодная статистика): | H48: Таблица 1
B49: Группы клиентов | E49: 2010-12-31 | F49: 2011-12-31 | G49: 2012-12-31 | H49: 2013-12-31 | I49: 2014-12-31
B50: Физические лица | E50: 714295 | F50: 772175 | G50: 805549 | H50: 881844 | I50: 944559
B51: Юридические лица | E51: 17170 | F51: 16850 | G51: 17821 | H51: 19539 | I51: 20178
B52: Нерезиденты | E52: 4295 | F52: 5058 | G52: 5876 | H52: 6957 | I52: 7486
B53: Клиенты, передавшие свои средства в ДУ | E53: 5348 | F53: 5242 | G53: 5261 | H53: 5182 | I53: 5142
B54: Всего | E54: 741108 | F54: 799325 | G54: 834507 | H54: 913522 | I54: 977365
B82: Количество уникальных клиентов в Системе торгов (по состоянию на последний день месяца) (за последние 6 месяцев): | H82: Таблица 2
B83: Группы клиентов | C83: =EDATE(D83,-1) -> 2014-12-28 | D83: =EDATE(E83,-1) -> 2015-01-28 | E83: =EDATE(F83,-1) -> 2015-02-28 | F83: =EDATE(G83,-1) -> 2015-03-30 | G83: =EDATE(H83,-1) -> 2015-04-30 | H83: =EDATE(E11,1) -> 2015-05-30
B84: Физические лица | C84: 945143 | D84: 950502 | E84: 964598 | F84: 965577 | G84: 971876 | H84: 975467
B85: Юридические лица | C85: 20178 | D85: 20249 | E85: 20398 | F85: 20587 | G85: 20753 | H85: 20771
B86: Нерезиденты | C86: 7486 | D86: 7537 | E86: 7683 | F86: 8231 | G86: 8355 | H86: 8400
B87: Клиенты, передавшие свои средства в ДУ | C87: 5142 | D87: 5091 | E87: 5023 | F87: 5043 | G87: 4971 | H87: 4915
B88: Всего | C88: 977949 | D88: 983379 | E88: 997702 | F88: 999438 | G88: 1005955 | H88: 1009553
B124: Дополнительные показатели за | C124: =B3 -> 2015-05-31
H127: Таблица 1
B128: Участники торгов | G128: Абсолютные показатели
B129: Количество Участников торгов, имеющих активных клиентов | G129: 406
B133: Списки ведущих операторов фондового рынка - клиенты Участников торгов за | F133: =C6 -> 2015-05-31
B136: Ведущие операторы рынка – число зарегистрированных клиентов | H136: Таблица 1
B137: (по общему количеству уникальных клиентов всех типов, зарегистрированных в системе торгов биржи, в том числе в течение месяца)
B138: Наименование Участника торгов | G138: Количество клиентов
B139: ВТБ 24 (ПАО) | C139: ВТБ 24 (ПАО) | D139: ВТБ 24 (ПАО) | E139: ВТБ 24 (ПАО) | F139: ВТБ 24 (ПАО) | G139: 219733 | H139: 219733
B140: Сбербанк | C140: Сбербанк | D140: Сбербанк | E140: Сбербанк | F140: Сбербанк | G140: 182443 | H140: 182443
B141: АО "ФИНАМ" | C141: АО "ФИНАМ" | D141: АО "ФИНАМ" | E141: АО "ФИНАМ" | F141: АО "ФИНАМ" | G141: 129754 | H141: 129754
B142: ФГ БКС | C142: ФГ БКС | D142: ФГ БКС | E142: ФГ БКС | F142: ФГ БКС | G142: 128051 | H142: 128051
B143: АО "АЛЬФА-БАНК" | C143: АО "АЛЬФА-БАНК" | D143: АО "АЛЬФА-БАНК" | E143: АО "АЛЬФА-БАНК" | F143: АО "АЛЬФА-БАНК" | G143: 63213 | H143: 63213
B144: ФГ "ОТКРЫТИЕ" | C144: ФГ "ОТКРЫТИЕ" | D144: ФГ "ОТКРЫТИЕ" | E144: ФГ "ОТКРЫТИЕ" | F144: ФГ "ОТКРЫТИЕ" | G144: 59034 | H144: 59034
B145: ООО "АТОН" | C145: ООО "АТОН" | D145: ООО "АТОН" | E145: ООО "АТОН" | F145: ООО "АТОН" | G145: 46714 | H145: 46714
B146: ГК "АЛОР" | C146: ГК "АЛОР" | D146: ГК "АЛОР" | E146: ГК "АЛОР" | F146: ГК "АЛОР" | G146: 31257 | H146: 31257
B147: КИТ Финанс (ООО) | C147: КИТ Финанс (ООО) | D147: КИТ Финанс (ООО) | E147: КИТ Финанс (ООО) | F147: КИТ Финанс (ООО) | G147: 21808 | H147: 21808
B148: ООО "Инвестиционная палата" | C148: ООО "Инвестиционная палата" | D148: ООО "Инвестиционная палата" | E148: ООО "Инвестиционная палата" | F148: ООО "Инвестиционная палата" | G148: 19797 | H148: 19797
B151: Ведущие операторы рынка – число активных клиентов | H151: Таблица 2
B152: (по количеству уникальных клиентов, совершивших хотя бы одну сделку за месяц)
B153: Наименование Участника торгов | G153: Количество клиентов
B154: Сбербанк | C154: Сбербанк | D154: Сбербанк | E154: Сбербанк | F154: Сбербанк | G154: 11328 | H154: 11328
B155: ВТБ 24 (ПАО) | C155: ВТБ 24 (ПАО) | D155: ВТБ 24 (ПАО) | E155: ВТБ 24 (ПАО) | F155: ВТБ 24 (ПАО) | G155: 10048 | H155: 10048
B156: АО "ФИНАМ" | C156: АО "ФИНАМ" | D156: АО "ФИНАМ" | E156: АО "ФИНАМ" | F156: АО "ФИНАМ" | G156: 9539 | H156: 9539
B157: ФГ БКС | C157: ФГ БКС | D157: ФГ БКС | E157: ФГ БКС | F157: ФГ БКС | G157: 9189 | H157: 9189
B158: ФГ "ОТКРЫТИЕ" | C158: ФГ "ОТКРЫТИЕ" | D158: ФГ "ОТКРЫТИЕ" | E158: ФГ "ОТКРЫТИЕ" | F158: ФГ "ОТКРЫТИЕ" | G158: 5512 | H158: 5512
B159: АО "АЛЬФА-БАНК" | C159: АО "АЛЬФА-БАНК" | D159: АО "АЛЬФА-БАНК" | E159: АО "АЛЬФА-БАНК" | F159: АО "АЛЬФА-БАНК" | G159: 3805 | H159: 3805
B160: ООО "АТОН" | C160: ООО "АТОН" | D160: ООО "АТОН" | E160: ООО "АТОН" | F160: ООО "АТОН" | G160: 2687 | H160: 2687
B161: Банк ГПБ (АО) | C161: Банк ГПБ (АО) | D161: Банк ГПБ (АО) | E161: Банк ГПБ (АО) | F161: Банк ГПБ (АО) | G161: 1920 | H161: 1920
B162: КИТ Финанс (ООО) | C162: КИТ Финанс (ООО) | D162: КИТ Финанс (ООО) | E162: КИТ Финанс (ООО) | F162: КИТ Финанс (ООО) | G162: 1280 | H162: 1280
B163: ГК "АЛОР" | C163: ГК "АЛОР" | D163: ГК "АЛОР" | E163: ГК "АЛОР" | F163: ГК "АЛОР" | G163: 1202 | H163: 1202
B166: Ведущие операторы рынка – объем клиентских операций | H166: Таблица 3
B167: (по стоимостному объему сделок, заключенных в интересах клиентов за месяц)
B168: Наименование Участника торгов | G168: Торговый оборот, руб.
B169: ФГ "ОТКРЫТИЕ" | C169: ФГ "ОТКРЫТИЕ" | D169: ФГ "ОТКРЫТИЕ" | E169: ФГ "ОТКРЫТИЕ" | F169: ФГ "ОТКРЫТИЕ" | G169: 1.57083308e+12 | H169: 1.57083308e+12
B170: ФГ БКС | C170: ФГ БКС | D170: ФГ БКС | E170: ФГ БКС | F170: ФГ БКС | G170: 9.494131583e+11 | H170: 9.494131583e+11
B171: ООО "Ренессанс Брокер" | C171: ООО "Ренессанс Брокер" | D171: ООО "Ренессанс Брокер" | E171: ООО "Ренессанс Брокер" | F171: ООО "Ренессанс Брокер" | G171: 8.764406422e+11 | H171: 8.764406422e+11
B172: Сбербанк | C172: Сбербанк | D172: Сбербанк | E172: Сбербанк | F172: Сбербанк | G172: 5.430588103e+11 | H172: 5.430588103e+11
B173: ООО "БК РЕГИОН" | C173: ООО "БК РЕГИОН" | D173: ООО "БК РЕГИОН" | E173: ООО "БК РЕГИОН" | F173: ООО "БК РЕГИОН" | G173: 3.133129824e+11 | H173: 3.133129824e+11
B174: ООО "ИК ВЕЛЕС Капитал" | C174: ООО "ИК ВЕЛЕС Капитал" | D174: ООО "ИК ВЕЛЕС Капитал" | E174: ООО "ИК ВЕЛЕС Капитал" | F174: ООО "ИК ВЕЛЕС Капитал" | G174: 3.074919513e+11 | H174: 3.074919513e+11
B175: ПАО "Промсвязьбанк" | C175: ПАО "Промсвязьбанк" | D175: ПАО "Промсвязьбанк" | E175: ПАО "Промсвязьбанк" | F175: ПАО "Промсвязьбанк" | G175: 2.503511996e+11 | H175: 2.503511996e+11
B176: АО "ФИНАМ" | C176: АО "ФИНАМ" | D176: АО "ФИНАМ" | E176: АО "ФИНАМ" | F176: АО "ФИНАМ" | G176: 2.459520685e+11 | H176: 2.459520685e+11
B177: ООО "РОНИН" | C177: ООО "РОНИН" | D177: ООО "РОНИН" | E177: ООО "РОНИН" | F177: ООО "РОНИН" | G177: 1.640226826e+11 | H177: 1.640226826e+11
B178: ООО "АТОН" | C178: ООО "АТОН" | D178: ООО "АТОН" | E178: ООО "АТОН" | F178: ООО "АТОН" | G178: 1.161601742e+11 | H178: 1.161601742e+11

Sheet Июнь2015
B2: Клиенты Участников торгов Фондовой биржи ММВБ
B3: 2015-06-30
B6: Динамика количества клиентов за | C6: =B3 -> 2015-06-30
B10: Количество зарегистрированных клиентов в Системе торгов (по состоянию на последний день месяца): | H10: Таблица 1
B11: Группы клиентов | E11: 2015-05-31 | F11: =EDATE(E11,1) -> 2015-06-30 | G11: Изменение (ед.) | H11: Изменение (%)
B12: Физические лица | E12: =Май2015!F12 -> 1193334 | F12: 1219694 | G12: =F12-E12 -> 26360 | H12: =F12/E12-1 -> 0.02208937313
B13: Юридические лица | E13: =Май2015!F13 -> 35680 | F13: 35729 | G13: =F13-E13 -> 49 | H13: 0.001373318386
B14: Нерезиденты | E14: =Май2015!F14 -> 13121 | F14: 13228 | G14: 107 | H14: 0.008154866245
B15: Нерезиденты - физические лица | E15: =Май2015!F15 -> 3602 | F15: 3836 | G15: 234 | H15: 0.06496390894
B16: Нерезиденты - юридические лица | E16: =Май2015!F16 -> 9519 | F16: 9392 | G16: -127 | H16: -0.01334173758
B17: Клиенты, передавшие свои средства в ДУ | E17: =Май2015!F17 -> 14247 | F17: 15002 | G17: 755 | H17: 0.05299361269
B18: Всего | E18: =Май2015!F18 -> 1256382 | F18: 1283653 | G18: 27271 | H18: 0.02170597796
B21: Количество уникальных клиентов в Системе торгов (по состоянию на последний день месяца): | H21: Таблица 2
B22: Группы клиентов | E22: =E11 -> 2015-05-31 | F22: =F11 -> 2015-06-30 | G22: Изменение (ед.) | H22: Изменение (%)
B23: Физические лица | E23: =Май2015!F23 -> 975467 | F23: 980206 | G23: =F23-E23 -> 4739 | H23: =F23/E23-1 -> 0.004858185874
B24: Юридические лица | E24: =Май2015!F24 -> 20771 | F24: 20872 | G24: =F24-E24 -> 101 | H24: =F24/E24-1 -> 0.004862548746
B25: Нерезиденты | E25: =Май2015!F25 -> 8400 | F25: 8385 | G25: -15 | H25: -0.001785714286
B26: Нерезиденты - физические лица | E26: =Май2015!F26 -> 3500 | F26: 3652 | G26: 152 | H26: 0.04342857143
B27: Нерезиденты - юридические лица | E27: =Май2015!F27 -> 4900 | F27: 4733 | G27: -167 | H27: -0.03408163265
B28: Клиенты, передавшие свои средства в ДУ | E28: =Май2015!F28 -> 4915 | F28: 4856 | G28: -59 | H28: -0.01200406918
B29: Всего | E29: =Май2015!F29 -> 1009553 | F29: 1014319 | G29: 4766 | H29: 0.004720901231
B32: Количество активных клиентов в Системе торгов (совершивших в течение месяца хотя бы одну сделку): | H32: Таблица 3
B33: Группы клиентов | E33: =E11 -> 2015-05-31 | F33: =F11 -> 2015-06-30 | G33: Изменение (ед.) | H33: Изменение (%)
B34: Физические лица | E34: =Май2015!F34 -> 63813 | F34: 62599 | G34: =F34-E34 -> -1214 | H34: =F34/E34-1 -> -0.01902433673
B35: Юридические лица | E35: =Май2015!F35 -> 1008 | F35: 1145 | G35: 137 | H35: 0.1359126984
B36: Нерезиденты | E36: =Май2015!F36 -> 537 | F36: 578 | G36: 41 | H36: 0.07635009311
B37: Нерезиденты - физические лица | E37: =Май2015!F37 -> 225 | F37: 247 | G37: 22 | H37: 0.09777777778
B38: Нерезиденты - юридические лица | E38: =Май2015!F38 -> 312 | F38: 331 | G38: 19 | H38: 0.0608974359
B39: Клиенты, передавшие свои средства в ДУ | E39: =Май2015!F39 -> 477 | F39: 510 | G39: 33 | H39: 0.06918238994
B40: Всего | E40: =Май2015!F40 -> 65835 | F40: 64832 | G40: -1003 | H40: -0.01523505734
B44: Изменение количества уникальных клиентов - ретроспективные данные
B48: Количество уникальных клиентов в Системе торгов (по состоянию на последний день месяца) (ежегодная статистика): | H48: Таблица 1
B49: Группы клиентов | E49: 2010-12-31 | F49: 2011-12-31 | G49: 2012-12-31 | H49: 2013-12-31 | I49: 2014-12-31
B50: Физические лица | E50: 714295 | F50: 772175 | G50: 805549 | H50: 881844 | I50: 944559
B51: Юридические лица | E51: 17170 | F51: 16850 | G51: 17821 | H51: 19539 | I51: 20178
B52: Нерезиденты | E52: 4295 | F52: 5058 | G52: 5876 | H52: 6957 | I52: 7486
B53: Клиенты, передавшие свои средства в ДУ | E53: 5348 | F53: 5242 | G53: 5261 | H53: 5182 | I53: 5142
B54: Всего | E54: 741108 | F54: 799325 | G54: 834507 | H54: 913522 | I54: 977365
B82: Количество уникальных клиентов в Системе торгов (по состоянию на последний день месяца) (за последние 6 месяцев): | H82: Таблица 2
B83: Группы клиентов | C83: =EDATE(D83,-1) -> 2015-01-28 | D83: =EDATE(E83,-1) -> 2015-02-28 | E83: =EDATE(F83,-1) -> 2015-03-30 | F83: =EDATE(G83,-1) -> 2015-04-30 | G83: =EDATE(H83,-1) -> 2015-05-30 | H83: =EDATE(E11,1) -> 2015-06-30
B84: Физические лица | C84: 950502 | D84: 964598 | E84: 965577 | F84: 971876 | G84: 975467 | H84: 980206
B85: Юридические лица | C85: 20249 | D85: 20398 | E85: 20587 | F85: 20753 | G85: 20771 | H85: 20872
B86: Нерезиденты | C86: 7537 | D86: 7683 | E86: 8231 | F86: 8355 | G86: 8400 | H86: 8385
B87: Клиенты, передавшие свои средства в ДУ | C87: 5091 | D87: 5023 | E87: 5043 | F87: 4971 | G87: 4915 | H87: 4856
B88: Всего | C88: 983379 | D88: 997702 | E88: 999438 | F88: 1005955 | G88: 1009553 | H88: 1014319
B124: Дополнительные показатели за | C124: =B3 -> 2015-06-30
H127: Таблица 1
B128: Участники торгов | G128: Абсолютные показатели
B129: Количество Участников торгов, имеющих активных клиентов | G129: 411
B133: Списки ведущих операторов фондового рынка - клиенты Участников торгов за | F133: =C6 -> 2015-06-30
B136: Ведущие операторы рынка – число зарегистрированных клиентов | H136: Таблица 1
B137: (по общему количеству уникальных клиентов всех типов, зарегистрированных в системе торгов биржи, в том числе в течение месяца)
B138: Наименование Участника торгов | G138: Количество клиентов
B139: ВТБ 24 (ПАО) | C139: ВТБ 24 (ПАО) | D139: ВТБ 24 (ПАО) | E139: ВТБ 24 (ПАО) | F139: ВТБ 24 (ПАО) | G139: 221148 | H139: 221148
B140: Сбербанк | C140: Сбербанк | D140: Сбербанк | E140: Сбербанк | F140: Сбербанк | G140: 182537 | H140: 182537
B141: АО "ФИНАМ" | C141: АО "ФИНАМ" | D141: АО "ФИНАМ" | E141: АО "ФИНАМ" | F141: АО "ФИНАМ" | G141: 130794 | H141: 130794
B142: ФГ БКС | C142: ФГ БКС | D142: ФГ БКС | E142: ФГ БКС | F142: ФГ БКС | G142: 129175 | H142: 129175
B143: АО "АЛЬФА-БАНК" | C143: АО "АЛЬФА-БАНК" | D143: АО "АЛЬФА-БАНК" | E143: АО "АЛЬФА-БАНК" | F143: АО "АЛЬФА-БАНК" | G143: 63238 | H143: 63238
B144: ФГ "ОТКРЫТИЕ" | C144: ФГ "ОТКРЫТИЕ" | D144: ФГ "ОТКРЫТИЕ" | E144: ФГ "ОТКРЫТИЕ" | F144: ФГ "ОТКРЫТИЕ" | G144: 60955 | H144: 60955
B145: ООО "АТОН" | C145: ООО "АТОН" | D145: ООО "АТОН" | E145: ООО "АТОН" | F145: ООО "АТОН" | G145: 46863 | H145: 46863
B146: ГК "АЛОР" | C146: ГК "АЛОР" | D146: ГК "АЛОР" | E146: ГК "АЛОР" | F146: ГК "АЛОР" | G146: 31315 | H146: 31315
B147: КИТ Финанс (ООО) | C147: КИТ Финанс (ООО) | D147: КИТ Финанс (ООО) | E147: КИТ Финанс (ООО) | F147: КИТ Финанс (ООО) | G147: 21875 | H147: 21875
B148: ООО "Инвестиционная палата" | C148: ООО "Инвестиционная палата" | D148: ООО "Инвестиционная палата" | E148: ООО "Инвестиционная палата" | F148: ООО "Инвестиционная палата" | G148: 19808 | H148: 19808
B151: Ведущие операторы рынка – число активных клиентов | H151: Таблица 2
B152: (по количеству уникальных клиентов, совершивших хотя бы одну сделку за месяц)
B153: Наименование Участника торгов | G153: Количество клиентов
B154: Сбербанк | C154: Сбербанк | D154: Сбербанк | E154: Сбербанк | F154: Сбербанк | G154: 10711 | H154: 10711
B155: ВТБ 24 (ПАО) | C155: ВТБ 24 (ПАО) | D155: ВТБ 24 (ПАО) | E155: ВТБ 24 (ПАО) | F155: ВТБ 24 (ПАО) | G155: 10211 | H155: 10211
B156: АО "ФИНАМ" | C156: АО "ФИНАМ" | D156: АО "ФИНАМ" | E156: АО "ФИНАМ" | F156: АО "ФИНАМ" | G156: 9357 | H156: 9357
B157: ФГ БКС | C157: ФГ БКС | D157: ФГ БКС | E157: ФГ БКС | F157: ФГ БКС | G157: 8808 | H157: 8808
B158: ФГ "ОТКРЫТИЕ" | C158: ФГ "ОТКРЫТИЕ" | D158: ФГ "ОТКРЫТИЕ" | E158: ФГ "ОТКРЫТИЕ" | F158: ФГ "ОТКРЫТИЕ" | G158: 5593 | H158: 5593
B159: АО "АЛЬФА-БАНК" | C159: АО "АЛЬФА-БАНК" | D159: АО "АЛЬФА-БАНК" | E159: АО "АЛЬФА-БАНК" | F159: АО "АЛЬФА-БАНК" | G159: 3847 | H159: 3847
B160: ООО "АТОН" | C160: ООО "АТОН" | D160: ООО "АТОН" | E160: ООО "АТОН" | F160: ООО "АТОН" | G160: 2608 | H160: 2608
B161: Банк ГПБ (АО) | C161: Банк ГПБ (АО) | D161: Банк ГПБ (АО) | E161: Банк ГПБ (АО) | F161: Банк ГПБ (АО) | G161: 1869 | H161: 1869
B162: КИТ Финанс (ООО) | C162: КИТ Финанс (ООО) | D162: КИТ Финанс (ООО) | E162: КИТ Финанс (ООО) | F162: КИТ Финанс (ООО) | G162: 1223 | H162: 1223
B163: ГК "АЛОР" | C163: ГК "АЛОР" | D163: ГК "АЛОР" | E163: ГК "АЛОР" | F163: ГК "АЛОР" | G163: 1175 | H163: 1175
B166: Ведущие операторы рынка – объем клиентских операций | H166: Таблица 3
B167: (по стоимостному объему сделок, заключенных в интересах клиентов за месяц)
B168: Наименование Участника торгов | G168: Торговый оборот, руб.
B169: ФГ "ОТКРЫТИЕ" | C169: ФГ "ОТКРЫТИЕ" | D169: ФГ "ОТКРЫТИЕ" | E169: ФГ "ОТКРЫТИЕ" | F169: ФГ "ОТКРЫТИЕ" | G169: 1.838546722e+12 | H169: 1.838546722e+12
B170: ООО "Ренессанс Брокер" | C170: ООО "Ренессанс Брокер" | D170: ООО "Ренессанс Брокер" | E170: ООО "Ренессанс Брокер" | F170: ООО "Ренессанс Брокер" | G170: 1.321811418e+12 | H170: 1.321811418e+12
B171: ФГ БКС | C171: ФГ БКС | D171: ФГ БКС | E171: ФГ БКС | F171: ФГ БКС | G171: 1.104402176e+12 | H171: 1.104402176e+12
B172: Сбербанк | C172: Сбербанк | D172: Сбербанк | E172: Сбербанк | F172: Сбербанк | G172: 6.348713622e+11 | H172: 6.348713622e+11
B173: ООО "БК РЕГИОН" | C173: ООО "БК РЕГИОН" | D173: ООО "БК РЕГИОН" | E173: ООО "БК РЕГИОН" | F173: ООО "БК РЕГИОН" | G173: 3.595118175e+11 | H173: 3.595118175e+11
B174: ООО "ИК ВЕЛЕС Капитал" | C174: ООО "ИК ВЕЛЕС Капитал" | D174: ООО "ИК ВЕЛЕС Капитал" | E174: ООО "ИК ВЕЛЕС Капитал" | F174: ООО "ИК ВЕЛЕС Капитал" | G174: 3.56863268e+11 | H174: 3.56863268e+11
B175: ПАО "Промсвязьбанк" | C175: ПАО "Промсвязьбанк" | D175: ПАО "Промсвязьбанк" | E175: ПАО "Промсвязьбанк" | F175: ПАО "Промсвязьбанк" | G175: 2.979641461e+11 | H175: 2.979641461e+11
B176: АО "ФИНАМ" | C176: АО "ФИНАМ" | D176: АО "ФИНАМ" | E176: АО "ФИНАМ" | F176: АО "ФИНАМ" | G176: 2.487184234e+11 | H176: 2.487184234e+11
B177: КБ "ЛОКО-Банк" (ЗАО) | C177: КБ "ЛОКО-Банк" (ЗАО) | D177: КБ "ЛОКО-Банк" (ЗАО) | E177: КБ "ЛОКО-Банк" (ЗАО) | F177: КБ "ЛОКО-Банк" (ЗАО) | G177: 1.485217562e+11 | H177: 1.485217562e+11
B178: ООО "АТОН" | C178: ООО "АТОН" | D178: ООО "АТОН" | E178: ООО "АТОН" | F178: ООО "АТОН" | G178: 1.234136906e+11 | H178: 1.234136906e+11

Sheet Июль2015
B2: Клиенты Участников торгов Фондовой биржи ММВБ
B3: 2015-07-31
B6: Динамика количества клиентов за | C6: =B3 -> 2015-07-31
B10: Количество зарегистрированных клиентов в Системе торгов (по состоянию на последний день месяца): | H10: Таблица 1
B11: Группы клиентов | E11: 2015-06-30 | F11: =EDATE(E11,1) -> 2015-07-30 | G11: Изменение (ед.) | H11: Изменение (%)
B12: Физические лица | E12: =Июнь2015!F12 -> 1219694 | F12: 1220929 | G12: =F12-E12 -> 1235 | H12: =F12/E12-1 -> 0.001012549049
B13: Юридические лица | E13: =Июнь2015!F13 -> 35729 | F13: 35988 | G13: =F13-E13 -> 259 | H13: 0.007249013406
B14: Нерезиденты | E14: =Июнь2015!F14 -> 13228 | F14: 16162 | G14: 2934 | H14: 0.2218022377
B15: Нерезиденты - физические лица | E15: =Июнь2015!F15 -> 3836 | F15: 4321 | G15: 485 | H15: 0.1264337852
B16: Нерезиденты - юридические лица | E16: =Июнь2015!F16 -> 9392 | F16: 11841 | G16: 2449 | H16: 0.260753833
B17: Клиенты, передавшие свои средства в ДУ | E17: =Июнь2015!F17 -> 15002 | F17: 15591 | G17: 589 | H17: 0.03926143181
B18: Всего | E18: =Июнь2015!F18 -> 1283653 | F18: 1288670 | G18: 5017 | H18: 0.003908377108
B21: Количество уникальных клиентов в Системе торгов (по состоянию на последний день месяца): | H21: Таблица 2
B22: Группы клиентов | E22: =E11 -> 2015-06-30 | F22: =F11 -> 2015-07-30 | G22: Изменение (ед.) | H22: Изменение (%)
B23: Физические лица | E23: =Июнь2015!F23 -> 980206 | F23: 984614 | G23: =F23-E23 -> 4408 | H23: =F23/E23-1 -> 0.004497013893
B24: Юридические лица | E24: =Июнь2015!F24 -> 20872 | F24: 20904 | G24: =F24-E24 -> 32 | H24: =F24/E24-1 -> 0.001533154465
B25: Нерезиденты | E25: =Июнь2015!F25 -> 8385 | F25: 8823 | G25: 438 | H25: 0.05223613596
B26: Нерезиденты - физические лица | E26: =Июнь2015!F26 -> 3652 | F26: 3897 | G26: 245 | H26: 0.06708652793
B27: Нерезиденты - юридические лица | E27: =Июнь2015!F27 -> 4733 | F27: 4926 | G27: 193 | H27: 0.04077751954
B28: Клиенты, передавшие свои средства в ДУ | E28: =Июнь2015!F28 -> 4856 | F28: 4715 | G28: -141 | H28: -0.02903624382
B29: Всего | E29: =Июнь2015!F29 -> 1014319 | F29: 1019056 | G29: 4737 | H29: 0.004670128431
B32: Количество активных клиентов в Системе торгов (совершивших в течение месяца хотя бы одну сделку): | H32: Таблица 3
B33: Группы клиентов | E33: =E11 -> 2015-06-30 | F33: =F11 -> 2015-07-30 | G33: Изменение (ед.) | H33: Изменение (%)
B34: Физические лица | E34: =Июнь2015!F34 -> 62599 | F34: 66054 | G34: =F34-E34 -> 3455 | H34: =F34/E34-1 -> 0.05519257496
B35: Юридические лица | E35: =Июнь2015!F35 -> 1145 | F35: 1123 | G35: -22 | H35: -0.0192139738
B36: Нерезиденты | E36: =Июнь2015!F36 -> 578 | F36: 619 | G36: 41 | H36: 0.07093425606
B37: Нерезиденты - физические лица | E37: =Июнь2015!F37 -> 247 | F37: 284 | G37: 37 | H37: 0.1497975709
B38: Нерезиденты - юридические лица | E38: =Июнь2015!F38 -> 331 | F38: 335 | G38: 4 | H38: 0.01208459215
B39: Клиенты, передавшие свои средства в ДУ | E39: =Июнь2015!F39 -> 510 | F39: 524 | G39: 14 | H39: 0.02745098039
B40: Всего | E40: =Июнь2015!F40 -> 64832 | F40: 68320 | G40: 3488 | H40: 0.0538005923
B44: Изменение количества уникальных клиентов - ретроспективные данные
B48: Количество уникальных клиентов в Системе торгов (по состоянию на последний день месяца) (ежегодная статистика): | H48: Таблица 1
B49: Группы клиентов | E49: 2010-12-31 | F49: 2011-12-31 | G49: 2012-12-31 | H49: 2013-12-31 | I49: 2014-12-31
B50: Физические лица | E50: 714295 | F50: 772175 | G50: 805549 | H50: 881844 | I50: 944559
B51: Юридические лица | E51: 17170 | F51: 16850 | G51: 17821 | H51: 19539 | I51: 20178
B52: Нерезиденты | E52: 4295 | F52: 5058 | G52: 5876 | H52: 6957 | I52: 7486
B53: Клиенты, передавшие свои средства в ДУ | E53: 5348 | F53: 5242 | G53: 5261 | H53: 5182 | I53: 5142
B54: Всего | E54: 741108 | F54: 799325 | G54: 834507 | H54: 913522 | I54: 977365
B82: Количество уникальных клиентов в Системе торгов (по состоянию на последний день месяца) (за последние 6 месяцев): | H82: Таблица 2
B83: Группы клиентов | C83: =EDATE(D83,-1) -> 2015-02-28 | D83: =EDATE(E83,-1) -> 2015-03-30 | E83: =EDATE(F83,-1) -> 2015-04-30 | F83: =EDATE(G83,-1) -> 2015-05-30 | G83: =EDATE(H83,-1) -> 2015-06-30 | H83: =EDATE(E11,1) -> 2015-07-30
B84: Физические лица | C84: 964598 | D84: 965577 | E84: 971876 | F84: 975467 | G84: 980206 | H84: 984614
B85: Юридические лица | C85: 20398 | D85: 20587 | E85: 20753 | F85: 20771 | G85: 20872 | H85: 20904
B86: Нерезиденты | C86: 7683 | D86: 8231 | E86: 8355 | F86: 8400 | G86: 8385 | H86: 8823
B87: Клиенты, передавшие свои средства в ДУ | C87: 5023 | D87: 5043 | E87: 4971 | F87: 4915 | G87: 4856 | H87: 4715
B88: Всего | C88: 997702 | D88: 999438 | E88: 1005955 | F88: 1009553 | G88: 1014319 | H88: 1019056
B124: Дополнительные показатели за | C124: =B3 -> 2015-07-31
H127: Таблица 1
B128: Участники торгов | G128: Абсолютные показатели
B129: Количество Участников торгов, имеющих активных клиентов | G129: 404
B133: Списки ведущих операторов фондового рынка - клиенты Участников торгов за | F133: =C6 -> 2015-07-31
B136: Ведущие операторы рынка – число зарегистрированных клиентов | H136: Таблица 1
B137: (по общему количеству уникальных клиентов всех типов, зарегистрированных в системе торгов биржи, в том числе в течение месяца)
B138: Наименование Участника торгов | G138: Количество клиентов
B139: ВТБ 24 (ПАО) | C139: ВТБ 24 (ПАО) | D139: ВТБ 24 (ПАО) | E139: ВТБ 24 (ПАО) | F139: ВТБ 24 (ПАО) | G139: 221975 | H139: 221975
B140: Сбербанк | C140: Сбербанк | D140: Сбербанк | E140: Сбербанк | F140: Сбербанк | G140: 183481 | H140: 183481
B141: АО "ФИНАМ" | C141: АО "ФИНАМ" | D141: АО "ФИНАМ" | E141: АО "ФИНАМ" | F141: АО "ФИНАМ" | G141: 131835 | H141: 131835
B142: ФГ БКС | C142: ФГ БКС | D142: ФГ БКС | E142: ФГ БКС | F142: ФГ БКС | G142: 130661 | H142: 130661
B143: АО "АЛЬФА-БАНК" | C143: АО "АЛЬФА-БАНК" | D143: АО "АЛЬФА-БАНК" | E143: АО "АЛЬФА-БАНК" | F143: АО "АЛЬФА-БАНК" | G143: 63337 | H143: 63337
B144: ФГ "ОТКРЫТИЕ" | C144: ФГ "ОТКРЫТИЕ" | D144: ФГ "ОТКРЫТИЕ" | E144: ФГ "ОТКРЫТИЕ" | F144: ФГ "ОТКРЫТИЕ" | G144: 62541 | H144: 62541
B145: ООО "АТОН" | C145: ООО "АТОН" | D145: ООО "АТОН" | E145: ООО "АТОН" | F145: ООО "АТОН" | G145: 47023 | H145: 47023
B146: ГК "АЛОР" | C146: ГК "АЛОР" | D146: ГК "АЛОР" | E146: ГК "АЛОР" | F146: ГК "АЛОР" | G146: 31282 | H146: 31282
B147: КИТ Финанс (ООО) | C147: КИТ Финанс (ООО) | D147: КИТ Финанс (ООО) | E147: КИТ Финанс (ООО) | F147: КИТ Финанс (ООО) | G147: 21927 | H147: 21927
B148: ООО "Инвестиционная палата" | C148: ООО "Инвестиционная палата" | D148: ООО "Инвестиционная палата" | E148: ООО "Инвестиционная палата" | F148: ООО "Инвестиционная палата" | G148: 19816 | H148: 19816
B151: Ведущие операторы рынка – число активных клиентов | H151: Таблица 2
B152: (по количеству уникальных клиентов, совершивших хотя бы одну сделку за месяц)
B153: Наименование Участника торгов | G153: Количество клиентов
B154: Сбербанк | C154: Сбербанк | D154: Сбербанк | E154: Сбербанк | F154: Сбербанк | G154: 11465 | H154: 11465
B155: ВТБ 24 (ПАО) | C155: ВТБ 24 (ПАО) | D155: ВТБ 24 (ПАО) | E155: ВТБ 24 (ПАО) | F155: ВТБ 24 (ПАО) | G155: 10562 | H155: 10562
B156: АО "ФИНАМ" | C156: АО "ФИНАМ" | D156: АО "ФИНАМ" | E156: АО "ФИНАМ" | F156: АО "ФИНАМ" | G156: 9960 | H156: 9960
B157: ФГ БКС | C157: ФГ БКС | D157: ФГ БКС | E157: ФГ БКС | F157: ФГ БКС | G157: 9510 | H157: 9510
B158: ФГ "ОТКРЫТИЕ" | C158: ФГ "ОТКРЫТИЕ" | D158: ФГ "ОТКРЫТИЕ" | E158: ФГ "ОТКРЫТИЕ" | F158: ФГ "ОТКРЫТИЕ" | G158: 6100 | H158: 6100
B159: АО "АЛЬФА-БАНК" | C159: АО "АЛЬФА-БАНК" | D159: АО "АЛЬФА-БАНК" | E159: АО "АЛЬФА-БАНК" | F159: АО "АЛЬФА-БАНК" | G159: 3946 | H159: 3946
B160: ООО "АТОН" | C160: ООО "АТОН" | D160: ООО "АТОН" | E160: ООО "АТОН" | F160: ООО "АТОН" | G160: 2748 | H160: 2748
B161: Банк ГПБ (АО) | C161: Банк ГПБ (АО) | D161: Банк ГПБ (АО) | E161: Банк ГПБ (АО) | F161: Банк ГПБ (АО) | G161: 2031 | H161: 2031
B162: КИТ Финанс (ООО) | C162: КИТ Финанс (ООО) | D162: КИТ Финанс (ООО) | E162: КИТ Финанс (ООО) | F162: КИТ Финанс (ООО) | G162: 1331 | H162: 1331
B163: ГК "АЛОР" | C163: ГК "АЛОР" | D163: ГК "АЛОР" | E163: ГК "АЛОР" | F163: ГК "АЛОР" | G163: 1238 | H163: 1238
B166: Ведущие операторы рынка – объем клиентских операций | H166: Таблица 3
B167: (по стоимостному объему сделок, заключенных в интересах клиентов за месяц)
B168: Наименование Участника торгов | G168: Торговый оборот, руб.
B169: ФГ "ОТКРЫТИЕ" | C169: ФГ "ОТКРЫТИЕ" | D169: ФГ "ОТКРЫТИЕ" | E169: ФГ "ОТКРЫТИЕ" | F169: ФГ "ОТКРЫТИЕ" | G169: 2.04303637e+12 | H169: 2.04303637e+12
B170: ООО "Ренессанс Брокер" | C170: ООО "Ренессанс Брокер" | D170: ООО "Ренессанс Брокер" | E170: ООО "Ренессанс Брокер" | F170: ООО "Ренессанс Брокер" | G170: 1.533427194e+12 | H170: 1.533427194e+12
B171: ФГ БКС | C171: ФГ БКС | D171: ФГ БКС | E171: ФГ БКС | F171: ФГ БКС | G171: 1.201179015e+12 | H171: 1.201179015e+12
B172: Сбербанк | C172: Сбербанк | D172: Сбербанк | E172: Сбербанк | F172: Сбербанк | G172: 4.780172833e+11 | H172: 4.780172833e+11
B173: ООО "ИК ВЕЛЕС Капитал" | C173: ООО "ИК ВЕЛЕС Капитал" | D173: ООО "ИК ВЕЛЕС Капитал" | E173: ООО "ИК ВЕЛЕС Капитал" | F173: ООО "ИК ВЕЛЕС Капитал" | G173: 4.37956434e+11 | H173: 4.37956434e+11
B174: ПАО "Промсвязьбанк" | C174: ПАО "Промсвязьбанк" | D174: ПАО "Промсвязьбанк" | E174: ПАО "Промсвязьбанк" | F174: ПАО "Промсвязьбанк" | G174: 3.309178607e+11 | H174: 3.309178607e+11
B175: АО "ФИНАМ" | C175: АО "ФИНАМ" | D175: АО "ФИНАМ" | E175: АО "ФИНАМ" | F175: АО "ФИНАМ" | G175: 2.911243632e+11 | H175: 2.911243632e+11
B176: ООО "БК РЕГИОН" | C176: ООО "БК РЕГИОН" | D176: ООО "БК РЕГИОН" | E176: ООО "БК РЕГИОН" | F176: ООО "БК РЕГИОН" | G176: 2.49329192e+11 | H176: 2.49329192e+11
B177: ООО "АТОН" | C177: ООО "АТОН" | D177: ООО "АТОН" | E177: ООО "АТОН" | F177: ООО "АТОН" | G177: 1.968619743e+11 | H177: 1.968619743e+11
B178: КБ "ЛОКО-Банк" (ЗАО) | C178: КБ "ЛОКО-Банк" (ЗАО) | D178: КБ "ЛОКО-Банк" (ЗАО) | E178: КБ "ЛОКО-Банк" (ЗАО) | F178: КБ "ЛОКО-Банк" (ЗАО) | G178: 1.750258495e+11 | H178: 1.750258495e+11

Sheet Август2015
B2: Клиенты Участников торгов Фондовой биржи ММВБ
B3: 2015-08-31
B6: Динамика количества клиентов за | C6: =B3 -> 2015-08-31
B10: Количество зарегистрированных клиентов в Системе торгов (по состоянию на последний день месяца): | H10: Таблица 1
B11: Группы клиентов | E11: 2015-07-31 | F11: =EDATE(E11,1) -> 2015-08-31 | G11: Изменение (ед.) | H11: Изменение (%)
B12: Физические лица | E12: =Июль2015!F12 -> 1220929 | F12: 1235081 | G12: =F12-E12 -> 14152 | H12: =F12/E12-1 -> 0.01159117361
B13: Юридические лица | E13: =Июль2015!F13 -> 35988 | F13: 35814 | G13: =F13-E13 -> -174 | H13: -0.004834944982
B14: Нерезиденты | E14: =Июль2015!F14 -> 16162 | F14: 13361 | G14: -2801 | H14: -0.1733077589
B15: Нерезиденты - физические лица | E15: =Июль2015!F15 -> 4321 | F15: 4140 | G15: -181 | H15: -0.04188845175
B16: Нерезиденты - юридические лица | E16: =Июль2015!F16 -> 11841 | F16: 9221 | G16: -2620 | H16: -0.2212650959
B17: Клиенты, передавшие свои средства в ДУ | E17: =Июль2015!F17 -> 15591 | F17: 15927 | G17: 336 | H17: 0.02155089475
B18: Всего | E18: =Июль2015!F18 -> 1288670 | F18: 1300183 | G18: 11513 | H18: 0.008934017243
B21: Количество уникальных клиентов в Системе торгов (по состоянию на последний день месяца): | H21: Таблица 2
B22: Группы клиентов | E22: =E11 -> 2015-07-31 | F22: =F11 -> 2015-08-31 | G22: Изменение (ед.) | H22: Изменение (%)
B23: Физические лица | E23: =Июль2015!F23 -> 984614 | F23: 991257 | G23: =F23-E23 -> 6643 | H23: =F23/E23-1 -> 0.006746806363
B24: Юридические лица | E24: =Июль2015!F24 -> 20904 | F24: 20981 | G24: =F24-E24 -> 77 | H24: =F24/E24-1 -> 0.003683505549
B25: Нерезиденты | E25: =Июль2015!F25 -> 8823 | F25: 8602 | G25: -221 | H25: -0.02504816956
B26: Нерезиденты - физические лица | E26: =Июль2015!F26 -> 3897 | F26: 3939 | G26: 42 | H26: 0.01077752117
B27: Нерезиденты - юридические лица | E27: =Июль2015!F27 -> 4926 | F27: 4663 | G27: -263 | H27: -0.05339017458
B28: Клиенты, передавшие свои средства в ДУ | E28: =Июль2015!F28 -> 4715 | F28: 4694 | G28: -21 | H28: -0.004453870626
B29: Всего | E29: =Июль2015!F29 -> 1019056 | F29: 1025534 | G29: 6478 | H29: 0.006356863607
B32: Количество активных клиентов в Системе торгов (совершивших в течение месяца хотя бы одну сделку): | H32: Таблица 3
B33: Группы клиентов | E33: =E11 -> 2015-07-31 | F33: =F11 -> 2015-08-31 | G33: Изменение (ед.) | H33: Изменение (%)
B34: Физические лица | E34: =Июль2015!F34 -> 66054 | F34: 67242 | G34: =F34-E34 -> 1188 | H34: =F34/E34-1 -> 0.01798528477
B35: Юридические лица | E35: =Июль2015!F35 -> 1123 | F35: 1011 | G35: -112 | H35: -0.09973285841
B36: Нерезиденты | E36: =Июль2015!F36 -> 619 | F36: 594 | G36: -25 | H36: -0.04038772213
B37: Нерезиденты - физические лица | E37: =Июль2015!F37 -> 284 | F37: 273 | G37: -11 | H37: -0.03873239437
B38: Нерезиденты - юридические лица | E38: =Июль2015!F38 -> 335 | F38: 321 | G38: -14 | H38: -0.04179104478
B39: Клиенты, передавшие свои средства в ДУ | E39: =Июль2015!F39 -> 524 | F39: 488 | G39: -36 | H39: -0.06870229008
B40: Всего | E40: =Июль2015!F40 -> 68320 | F40: 69335 | G40: 1015 | H40: 0.01485655738
B44: Изменение количества уникальных клиентов - ретроспективные данные
B48: Количество уникальных клиентов в Системе торгов (по состоянию на последний день месяца) (ежегодная статистика): | H48: Таблица 1
B49: Группы клиентов | E49: 2010-12-31 | F49: 2011-12-31 | G49: 2012-12-31 | H49: 2013-12-31 | I49: 2014-12-31
B50: Физические лица | E50: 714295 | F50: 772175 | G50: 805549 | H50: 881844 | I50: 944559
B51: Юридические лица | E51: 17170 | F51: 16850 | G51: 17821 | H51: 19539 | I51: 20178
B52: Нерезиденты | E52: 4295 | F52: 5058 | G52: 5876 | H52: 6957 | I52: 7486
B53: Клиенты, передавшие свои средства в ДУ | E53: 5348 | F53: 5242 | G53: 5261 | H53: 5182 | I53: 5142
B54: Всего | E54: 741108 | F54: 799325 | G54: 834507 | H54: 913522 | I54: 977365
B82: Количество уникальных клиентов в Системе торгов (по состоянию на последний день месяца) (за последние 6 месяцев): | H82: Таблица 2
B83: Группы клиентов | C83: =EDATE(D83,-1) -> 2015-03-30 | D83: =EDATE(E83,-1) -> 2015-04-30 | E83: =EDATE(F83,-1) -> 2015-05-30 | F83: =EDATE(G83,-1) -> 2015-06-30 | G83: =EDATE(H83,-1) -> 2015-07-31 | H83: =EDATE(E11,1) -> 2015-08-31
B84: Физические лица | C84: 965577 | D84: 971876 | E84: 975467 | F84: 980206 | G84: 984614 | H84: 991257
B85: Юридические лица | C85: 20587 | D85: 20753 | E85: 20771 | F85: 20872 | G85: 20904 | H85: 20981
B86: Нерезиденты | C86: 8231 | D86: 8355 | E86: 8400 | F86: 8385 | G86: 8823 | H86: 8602
B87: Клиенты, передавшие свои средства в ДУ | C87: 5043 | D87: 4971 | E87: 4915 | F87: 4856 | G87: 4715 | H87: 4694
B88: Всего | C88: 999438 | D88: 1005955 | E88: 1009553 | F88: 1014319 | G88: 1019056 | H88: 1025534
B124: Дополнительные показатели за | C124: =B3 -> 2015-08-31
H127: Таблица 1
B128: Участники торгов | G128: Абсолютные показатели
B129: Количество Участников торгов, имеющих активных клиентов | G129: 395
B133: Списки ведущих операторов фондового рынка - клиенты Участников торгов за | F133: =C6 -> 2015-08-31
B136: Ведущие операторы рынка – число зарегистрированных клиентов | H136: Таблица 1
B137: (по общему количеству уникальных клиентов всех типов, зарегистрированных в системе торгов биржи, в том числе в течение месяца)
B138: Наименование Участника торгов | G138: Количество клиентов
B139: ВТБ 24 (ПАО) | C139: ВТБ 24 (ПАО) | D139: ВТБ 24 (ПАО) | E139: ВТБ 24 (ПАО) | F139: ВТБ 24 (ПАО) | G139: 222769 | H139: 222769
B140: Сбербанк | C140: Сбербанк | D140: Сбербанк | E140: Сбербанк | F140: Сбербанк | G140: 178795 | H140: 178795
B141: АО "ФИНАМ" | C141: АО "ФИНАМ" | D141: АО "ФИНАМ" | E141: АО "ФИНАМ" | F141: АО "ФИНАМ" | G141: 133432 | H141: 133432
B142: ФГ БКС | C142: ФГ БКС | D142: ФГ БКС | E142: ФГ БКС | F142: ФГ БКС | G142: 132552 | H142: 132552
B143: ФГ "ОТКРЫТИЕ" | C143: ФГ "ОТКРЫТИЕ" | D143: ФГ "ОТКРЫТИЕ" | E143: ФГ "ОТКРЫТИЕ" | F143: ФГ "ОТКРЫТИЕ" | G143: 64435 | H143: 64435
B144: АО "АЛЬФА-БАНК" | C144: АО "АЛЬФА-БАНК" | D144: АО "АЛЬФА-БАНК" | E144: АО "АЛЬФА-БАНК" | F144: АО "АЛЬФА-БАНК" | G144: 63642 | H144: 63642
B145: ООО "АТОН" | C145: ООО "АТОН" | D145: ООО "АТОН" | E145: ООО "АТОН" | F145: ООО "АТОН" | G145: 47253 | H145: 47253
B146: ГК "АЛОР" | C146: ГК "АЛОР" | D146: ГК "АЛОР" | E146: ГК "АЛОР" | F146: ГК "АЛОР" | G146: 31481 | H146: 31481
B147: КИТ Финанс (ООО) | C147: КИТ Финанс (ООО) | D147: КИТ Финанс (ООО) | E147: КИТ Финанс (ООО) | F147: КИТ Финанс (ООО) | G147: 22056 | H147: 22056
B148: ООО "Инвестиционная палата" | C148: ООО "Инвестиционная палата" | D148: ООО "Инвестиционная палата" | E148: ООО "Инвестиционная палата" | F148: ООО "Инвестиционная палата" | G148: 19818 | H148: 19818
B151: Ведущие операторы рынка – число активных клиентов | H151: Таблица 2
B152: (по количеству уникальных клиентов, совершивших хотя бы одну сделку за месяц)
B153: Наименование Участника торгов | G153: Количество клиентов
B154: Сбербанк | C154: Сбербанк | D154: Сбербанк | E154: Сбербанк | F154: Сбербанк | G154: 11791 | H154: 11791
B155: ВТБ 24 (ПАО) | C155: ВТБ 24 (ПАО) | D155: ВТБ 24 (ПАО) | E155: ВТБ 24 (ПАО) | F155: ВТБ 24 (ПАО) | G155: 10708 | H155: 10708
B156: АО "ФИНАМ" | C156: АО "ФИНАМ" | D156: АО "ФИНАМ" | E156: АО "ФИНАМ" | F156: АО "ФИНАМ" | G156: 9973 | H156: 9973
B157: ФГ БКС | C157: ФГ БКС | D157: ФГ БКС | E157: ФГ БКС | F157: ФГ БКС | G157: 9634 | H157: 9634
B158: ФГ "ОТКРЫТИЕ" | C158: ФГ "ОТКРЫТИЕ" | D158: ФГ "ОТКРЫТИЕ" | E158: ФГ "ОТКРЫТИЕ" | F158: ФГ "ОТКРЫТИЕ" | G158: 6427 | H158: 6427
B159: АО "АЛЬФА-БАНК" | C159: АО "АЛЬФА-БАНК" | D159: АО "АЛЬФА-БАНК" | E159: АО "АЛЬФА-БАНК" | F159: АО "АЛЬФА-БАНК" | G159: 4086 | H159: 4086
B160: ООО "АТОН" | C160: ООО "АТОН" | D160: ООО "АТОН" | E160: ООО "АТОН" | F160: ООО "АТОН" | G160: 2852 | H160: 2852
B161: Банк ГПБ (АО) | C161: Банк ГПБ (АО) | D161: Банк ГПБ (АО) | E161: Банк ГПБ (АО) | F161: Банк ГПБ (АО) | G161: 1986 | H161: 1986
B162: КИТ Финанс (ООО) | C162: КИТ Финанс (ООО) | D162: КИТ Финанс (ООО) | E162: КИТ Финанс (ООО) | F162: КИТ Финанс (ООО) | G162: 1322 | H162: 1322
B163: ГК "АЛОР" | C163: ГК "АЛОР" | D163: ГК "АЛОР" | E163: ГК "АЛОР" | F163: ГК "АЛОР" | G163: 1202 | H163: 1202
B166: Ведущие операторы рынка – объем клиентских операций | H166: Таблица 3
B167: (по стоимостному объему сделок, заключенных в интересах клиентов за месяц)
B168: Наименование Участника торгов | G168: Торговый оборот, руб.
B169: ООО "Ренессанс Брокер" | C169: ООО "Ренессанс Брокер" | D169: ООО "Ренессанс Брокер" | E169: ООО "Ренессанс Брокер" | F169: ООО "Ренессанс Брокер" | G169: 1.725854557e+12 | H169: 1.725854557e+12
B170: ФГ "ОТКРЫТИЕ" | C170: ФГ "ОТКРЫТИЕ" | D170: ФГ "ОТКРЫТИЕ" | E170: ФГ "ОТКРЫТИЕ" | F170: ФГ "ОТКРЫТИЕ" | G170: 1.39989284e+12 | H170: 1.39989284e+12
B171: ФГ БКС | C171: ФГ БКС | D171: ФГ БКС | E171: ФГ БКС | F171: ФГ БКС | G171: 1.078447092e+12 | H171: 1.078447092e+12
B172: Сбербанк | C172: Сбербанк | D172: Сбербанк | E172: Сбербанк | F172: Сбербанк | G172: 4.922891009e+11 | H172: 4.922891009e+11
B173: ООО "ИК ВЕЛЕС Капитал" | C173: ООО "ИК ВЕЛЕС Капитал" | D173: ООО "ИК ВЕЛЕС Капитал" | E173: ООО "ИК ВЕЛЕС Капитал" | F173: ООО "ИК ВЕЛЕС Капитал" | G173: 3.39973945e+11 | H173: 3.39973945e+11
B174: ПАО "Промсвязьбанк" | C174: ПАО "Промсвязьбанк" | D174: ПАО "Промсвязьбанк" | E174: ПАО "Промсвязьбанк" | F174: ПАО "Промсвязьбанк" | G174: 3.238173886e+11 | H174: 3.238173886e+11
B175: АО "ФИНАМ" | C175: АО "ФИНАМ" | D175: АО "ФИНАМ" | E175: АО "ФИНАМ" | F175: АО "ФИНАМ" | G175: 2.571269926e+11 | H175: 2.571269926e+11
B176: ГК "АЛОР" | C176: ГК "АЛОР" | D176: ГК "АЛОР" | E176: ГК "АЛОР" | F176: ГК "АЛОР" | G176: 1.83988442e+11 | H176: 1.83988442e+11
B177: КБ "ЛОКО-Банк" (ЗАО) | C177: КБ "ЛОКО-Банк" (ЗАО) | D177: КБ "ЛОКО-Банк" (ЗАО) | E177: КБ "ЛОКО-Банк" (ЗАО) | F177: КБ "ЛОКО-Банк" (ЗАО) | G177: 1.784266533e+11 | H177: 1.784266533e+11
B178: ООО "АТОН" | C178: ООО "АТОН" | D178: ООО "АТОН" | E178: ООО "АТОН" | F178: ООО "АТОН" | G178: 1.729016475e+11 | H178: 1.729016475e+11

Sheet Сентябрь2015
B2: Клиенты Участников торгов Фондовой биржи ММВБ
B3: 2015-09-30
B6: Динамика количества клиентов за | C6: =B3 -> 2015-09-30
B10: Количество зарегистрированных клиентов в Системе торгов (по состоянию на последний день месяца): | H10: Таблица 1
B11: Группы клиентов | E11: 2015-08-31 | F11: =EDATE(E11,1) -> 2015-09-30 | G11: Изменение (ед.) | H11: Изменение (%)
B12: Физические лица | E12: =Август2015!F12 -> 1235081 | F12: 1246115 | G12: =F12-E12 -> 11034 | H12: =F12/E12-1 -> 0.008933827012
B13: Юридические лица | E13: =Август2015!F13 -> 35814 | F13: 35949 | G13: =F13-E13 -> 135 | H13: 0.003769475624
B14: Нерезиденты | E14: =Август2015!F14 -> 13361 | F14: 13481 | G14: 120 | H14: 0.00898136367
B15: Нерезиденты - физические лица | E15: =Август2015!F15 -> 4140 | F15: 4342 | G15: 202 | H15: 0.04879227053
B16: Нерезиденты - юридические лица | E16: =Август2015!F16 -> 9221 | F16: 9139 | G16: -82 | H16: -0.008892744822
B17: Клиенты, передавшие свои средства в ДУ | E17: =Август2015!F17 -> 15927 | F17: 15721 | G17: -206 | H17: -0.01293401143
B18: Всего | E18: =Август2015!F18 -> 1300183 | F18: 1311266 | G18: 11083 | H18: 0.008524184672
B21: Количество уникальных клиентов в Системе торгов (по состоянию на последний день месяца): | H21: Таблица 2
B22: Группы клиентов | E22: =E11 -> 2015-08-31 | F22: =F11 -> 2015-09-30 | G22: Изменение (ед.) | H22: Изменение (%)
B23: Физические лица | E23: =Август2015!F23 -> 991257 | F23: 993268 | G23: =F23-E23 -> 2011 | H23: =F23/E23-1 -> 0.00202873725
B24: Юридические лица | E24: =Август2015!F24 -> 20981 | F24: 21072 | G24: =F24-E24 -> 91 | H24: =F24/E24-1 -> 0.004337257519
B25: Нерезиденты | E25: =Август2015!F25 -> 8602 | F25: 8775 | G25: 173 | H25: 0.02011160195
B26: Нерезиденты - физические лица | E26: =Август2015!F26 -> 3939 | F26: 4107 | G26: 168 | H26: 0.04265041889
B27: Нерезиденты - юридические лица | E27: =Август2015!F27 -> 4663 | F27: 4668 | G27: 5 | H27: 0.00107227107
B28: Клиенты, передавшие свои средства в ДУ | E28: =Август2015!F28 -> 4694 | F28: 4323 | G28: -371 | H28: -0.0790370686
B29: Всего | E29: =Август2015!F29 -> 1025534 | F29: 1027438 | G29: 1904 | H29: 0.001856593736
B32: Количество активных клиентов в Системе торгов (совершивших в течение месяца хотя бы одну сделку): | H32: Таблица 3
B33: Группы клиентов | E33: =E11 -> 2015-08-31 | F33: =F11 -> 2015-09-30 | G33: Изменение (ед.) | H33: Изменение (%)
B34: Физические лица | E34: =Август2015!F34 -> 67242 | F34: 67993 | G34: =F34-E34 -> 751 | H34: =F34/E34-1 -> 0.01116861485
B35: Юридические лица | E35: =Август2015!F35 -> 1011 | F35: 1113 | G35: 102 | H35: 0.1008902077
B36: Нерезиденты | E36: =Август2015!F36 -> 594 | F36: 611 | G36: 17 | H36: 0.02861952862
B37: Нерезиденты - физические лица | E37: =Август2015!F37 -> 273 | F37: 284 | G37: 11 | H37: 0.04029304029
B38: Нерезиденты - юридические лица | E38: =Август2015!F38 -> 321 | F38: 327 | G38: 6 | H38: 0.01869158879
B39: Клиенты, передавшие свои средства в ДУ | E39: =Август2015!F39 -> 488 | F39: 478 | G39: -10 | H39: -0.02049180328
B40: Всего | E40: =Август2015!F40 -> 69335 | F40: 70195 | G40: 860 | H40: 0.01240354799
B44: Изменение количества уникальных клиентов - ретроспективные данные
B48: Количество уникальных клиентов в Системе торгов (по состоянию на последний день месяца) (ежегодная статистика): | H48: Таблица 1
B49: Группы клиентов | E49: 2010-12-31 | F49: 2011-12-31 | G49: 2012-12-31 | H49: 2013-12-31 | I49: 2014-12-31
B50: Физические лица | E50: 714295 | F50: 772175 | G50: 805549 | H50: 881844 | I50: 944559
B51: Юридические лица | E51: 17170 | F51: 16850 | G51: 17821 | H51: 19539 | I51: 20178
B52: Нерезиденты | E52: 4295 | F52: 5058 | G52: 5876 | H52: 6957 | I52: 7486
B53: Клиенты, передавшие свои средства в ДУ | E53: 5348 | F53: 5242 | G53: 5261 | H53: 5182 | I53: 5142
B54: Всего | E54: 741108 | F54: 799325 | G54: 834507 | H54: 913522 | I54: 977365
B82: Количество уникальных клиентов в Системе торгов (по состоянию на последний день месяца) (за последние 6 месяцев): | H82: Таблица 2
B83: Группы клиентов | C83: =EDATE(D83,-1) -> 2015-04-30 | D83: =EDATE(E83,-1) -> 2015-05-30 | E83: =EDATE(F83,-1) -> 2015-06-30 | F83: =EDATE(G83,-1) -> 2015-07-30 | G83: =EDATE(H83,-1) -> 2015-08-30 | H83: =EDATE(E11,1) -> 2015-09-30
B84: Физические лица | C84: 971876 | D84: 975467 | E84: 980206 | F84: 984614 | G84: 991257 | H84: 993268
B85: Юридические лица | C85: 20753 | D85: 20771 | E85: 20872 | F85: 20904 | G85: 20981 | H85: 21072
B86: Нерезиденты | C86: 8355 | D86: 8400 | E86: 8385 | F86: 8823 | G86: 8602 | H86: 8775
B87: Клиенты, передавшие свои средства в ДУ | C87: 4971 | D87: 4915 | E87: 4856 | F87: 4715 | G87: 4694 | H87: 4323
B88: Всего | C88: 1005955 | D88: 1009553 | E88: 1014319 | F88: 1019056 | G88: 1025534 | H88: 1027438
B124: Дополнительные показатели за | C124: =B3 -> 2015-09-30
H127: Таблица 1
B128: Участники торгов | G128: Абсолютные показатели
B129: Количество Участников торгов, имеющих активных клиентов | G129: 396
B133: Списки ведущих операторов фондового рынка - клиенты Участников торгов за | F133: =C6 -> 2015-09-30
B136: Ведущие операторы рынка – число зарегистрированных клиентов | H136: Таблица 1
B137: (по общему количеству уникальных клиентов всех типов, зарегистрированных в системе торгов биржи, в том числе в течение месяца)
B138: Наименование Участника торгов | G138: Количество клиентов
B139: ВТБ 24 (ПАО) | C139: ВТБ 24 (ПАО) | D139: ВТБ 24 (ПАО) | E139: ВТБ 24 (ПАО) | F139: ВТБ 24 (ПАО) | G139: 223950 | H139: 223950
B140: Сбербанк | C140: Сбербанк | D140: Сбербанк | E140: Сбербанк | F140: Сбербанк | G140: 179804 | H140: 179804
B141: АО "ФИНАМ" | C141: АО "ФИНАМ" | D141: АО "ФИНАМ" | E141: АО "ФИНАМ" | F141: АО "ФИНАМ" | G141: 134736 | H141: 134736
B142: ФГ БКС | C142: ФГ БКС | D142: ФГ БКС | E142: ФГ БКС | F142: ФГ БКС | G142: 134417 | H142: 134417
B143: ФГ "ОТКРЫТИЕ" | C143: ФГ "ОТКРЫТИЕ" | D143: ФГ "ОТКРЫТИЕ" | E143: ФГ "ОТКРЫТИЕ" | F143: ФГ "ОТКРЫТИЕ" | G143: 66500 | H143: 66500
B144: АО "АЛЬФА-БАНК" | C144: АО "АЛЬФА-БАНК" | D144: АО "АЛЬФА-БАНК" | E144: АО "АЛЬФА-БАНК" | F144: АО "АЛЬФА-БАНК" | G144: 59532 | H144: 59532
B145: ООО "АТОН" | C145: ООО "АТОН" | D145: ООО "АТОН" | E145: ООО "АТОН" | F145: ООО "АТОН" | G145: 47439 | H145: 47439
B146: АЛОР БРОКЕР | C146: АЛОР БРОКЕР | D146: АЛОР БРОКЕР | E146: АЛОР БРОКЕР | F146: АЛОР БРОКЕР | G146: 31609 | H146: 31609
B147: КИТ Финанс (ООО) | C147: КИТ Финанс (ООО) | D147: КИТ Финанс (ООО) | E147: КИТ Финанс (ООО) | F147: КИТ Финанс (ООО) | G147: 22124 | H147: 22124
B148: ООО "Инвестиционная палата" | C148: ООО "Инвестиционная палата" | D148: ООО "Инвестиционная палата" | E148: ООО "Инвестиционная палата" | F148: ООО "Инвестиционная палата" | G148: 19824 | H148: 19824
B151: Ведущие операторы рынка – число активных клиентов | H151: Таблица 2
B152: (по количеству уникальных клиентов, совершивших хотя бы одну сделку за месяц)
B153: Наименование Участника торгов | G153: Количество клиентов
B154: Сбербанк | C154: Сбербанк | D154: Сбербанк | E154: Сбербанк | F154: Сбербанк | G154: 12149 | H154: 12149
B155: ВТБ 24 (ПАО) | C155: ВТБ 24 (ПАО) | D155: ВТБ 24 (ПАО) | E155: ВТБ 24 (ПАО) | F155: ВТБ 24 (ПАО) | G155: 10782 | H155: 10782
B156: АО "ФИНАМ" | C156: АО "ФИНАМ" | D156: АО "ФИНАМ" | E156: АО "ФИНАМ" | F156: АО "ФИНАМ" | G156: 9960 | H156: 9960
B157: ФГ БКС | C157: ФГ БКС | D157: ФГ БКС | E157: ФГ БКС | F157: ФГ БКС | G157: 9791 | H157: 9791
B158: ФГ "ОТКРЫТИЕ" | C158: ФГ "ОТКРЫТИЕ" | D158: ФГ "ОТКРЫТИЕ" | E158: ФГ "ОТКРЫТИЕ" | F158: ФГ "ОТКРЫТИЕ" | G158: 6686 | H158: 6686
B159: АО "АЛЬФА-БАНК" | C159: АО "АЛЬФА-БАНК" | D159: АО "АЛЬФА-БАНК" | E159: АО "АЛЬФА-БАНК" | F159: АО "АЛЬФА-БАНК" | G159: 4076 | H159: 4076
B160: ООО "АТОН" | C160: ООО "АТОН" | D160: ООО "АТОН" | E160: ООО "АТОН" | F160: ООО "АТОН" | G160: 2925 | H160: 2925
B161: Банк ГПБ (АО) | C161: Банк ГПБ (АО) | D161: Банк ГПБ (АО) | E161: Банк ГПБ (АО) | F161: Банк ГПБ (АО) | G161: 2089 | H161: 2089
B162: КИТ Финанс (ООО) | C162: КИТ Финанс (ООО) | D162: КИТ Финанс (ООО) | E162: КИТ Финанс (ООО) | F162: КИТ Финанс (ООО) | G162: 1288 | H162: 1288
B163: АЛОР БРОКЕР | C163: АЛОР БРОКЕР | D163: АЛОР БРОКЕР | E163: АЛОР БРОКЕР | F163: АЛОР БРОКЕР | G163: 1243 | H163: 1243
B166: Ведущие операторы рынка – объем клиентских операций | H166: Таблица 3
B167: (по стоимостному объему сделок, заключенных в интересах клиентов за месяц)
B168: Наименование Участника торгов | G168: Торговый оборот, руб.
B169: ООО "Ренессанс Брокер" | C169: ООО "Ренессанс Брокер" | D169: ООО "Ренессанс Брокер" | E169: ООО "Ренессанс Брокер" | F169: ООО "Ренессанс Брокер" | G169: 1.871950985e+12 | H169: 1.871950985e+12
B170: ФГ БКС | C170: ФГ БКС | D170: ФГ БКС | E170: ФГ БКС | F170: ФГ БКС | G170: 1.254106794e+12 | H170: 1.254106794e+12
B171: ФГ "ОТКРЫТИЕ" | C171: ФГ "ОТКРЫТИЕ" | D171: ФГ "ОТКРЫТИЕ" | E171: ФГ "ОТКРЫТИЕ" | F171: ФГ "ОТКРЫТИЕ" | G171: 1.241056376e+12 | H171: 1.241056376e+12
B172: Сбербанк | C172: Сбербанк | D172: Сбербанк | E172: Сбербанк | F172: Сбербанк | G172: 6.079648627e+11 | H172: 6.079648627e+11
B173: ПАО "Промсвязьбанк" | C173: ПАО "Промсвязьбанк" | D173: ПАО "Промсвязьбанк" | E173: ПАО "Промсвязьбанк" | F173: ПАО "Промсвязьбанк" | G173: 3.166107826e+11 | H173: 3.166107826e+11
B174: ООО "ИК ВЕЛЕС Капитал" | C174: ООО "ИК ВЕЛЕС Капитал" | D174: ООО "ИК ВЕЛЕС Капитал" | E174: ООО "ИК ВЕЛЕС Капитал" | F174: ООО "ИК ВЕЛЕС Капитал" | G174: 3.08650426e+11 | H174: 3.08650426e+11
B175: ООО "Меррилл Линч Секьюритиз" | C175: ООО "Меррилл Линч Секьюритиз" | D175: ООО "Меррилл Линч Секьюритиз" | E175: ООО "Меррилл Линч Секьюритиз" | F175: ООО "Меррилл Линч Секьюритиз" | G175: 2.718017514e+11 | H175: 2.718017514e+11
B176: АО "ФИНАМ" | C176: АО "ФИНАМ" | D176: АО "ФИНАМ" | E176: АО "ФИНАМ" | F176: АО "ФИНАМ" | G176: 2.465005612e+11 | H176: 2.465005612e+11
B177: ООО "БК РЕГИОН" | C177: ООО "БК РЕГИОН" | D177: ООО "БК РЕГИОН" | E177: ООО "БК РЕГИОН" | F177: ООО "БК РЕГИОН" | G177: 2.43722793e+11 | H177: 2.43722793e+11
B178: КБ "ЛОКО-Банк" (АО) | C178: КБ "ЛОКО-Банк" (АО) | D178: КБ "ЛОКО-Банк" (АО) | E178: КБ "ЛОКО-Банк" (АО) | F178: КБ "ЛОКО-Банк" (АО) | G178: 2.136189873e+11 | H178: 2.136189873e+11

Sheet Октябрь2015
B2: Клиенты Участников торгов Фондовой биржи ММВБ
B3: 2015-10-31
B6: Динамика количества клиентов за | C6: =B3 -> 2015-10-31
B10: Количество зарегистрированных клиентов в Системе торгов (по состоянию на последний день месяца): | H10: Таблица 1
B11: Группы клиентов | E11: 2015-09-30 | F11: =EDATE(E11,1) -> 2015-10-30 | G11: Изменение (ед.) | H11: Изменение (%)
B12: Физические лица | E12: =Сентябрь2015!F12 -> 1246115 | F12: 1259135 | G12: =F12-E12 -> 13020 | H12: =F12/E12-1 -> 0.01044847386
B13: Юридические лица | E13: =Сентябрь2015!F13 -> 35949 | F13: 35600 | G13: =F13-E13 -> -349 | H13: -0.009708197725
B14: Нерезиденты | E14: =Сентябрь2015!F14 -> 13481 | F14: 13582 | G14: 101 | H14: 0.007492025814
B15: Нерезиденты - физические лица | E15: =Сентябрь2015!F15 -> 4342 | F15: 4575 | G15: 233 | H15: 0.05366190696
B16: Нерезиденты - юридические лица | E16: =Сентябрь2015!F16 -> 9139 | F16: 9007 | G16: -132 | H16: -0.01444359339
B17: Клиенты, передавшие свои средства в ДУ | E17: =Сентябрь2015!F17 -> 15721 | F17: 15113 | G17: -608 | H17: -0.03867438458
B18: Всего | E18: =Сентябрь2015!F18 -> 1311266 | F18: 1323430 | G18: 12164 | H18: 0.00927653123
B21: Количество уникальных клиентов в Системе торгов (по состоянию на последний день месяца): | H21: Таблица 2
B22: Группы клиентов | E22: =E11 -> 2015-09-30 | F22: =F11 -> 2015-10-30 | G22: Изменение (ед.) | H22: Изменение (%)
B23: Физические лица | E23: =Сентябрь2015!F23 -> 993268 | F23: 996118 | G23: =F23-E23 -> 2850 | H23: =F23/E23-1 -> 0.002869316237
B24: Юридические лица | E24: =Сентябрь2015!F24 -> 21072 | F24: 20973 | G24: =F24-E24 -> -99 | H24: =F24/E24-1 -> -0.004698177677
B25: Нерезиденты | E25: =Сентябрь2015!F25 -> 8775 | F25: 8894 | G25: 119 | H25: 0.01356125356
B26: Нерезиденты - физические лица | E26: =Сентябрь2015!F26 -> 4107 | F26: 4335 | G26: 228 | H26: 0.05551497443
B27: Нерезиденты - юридические лица | E27: =Сентябрь2015!F27 -> 4668 | F27: 4559 | G27: -109 | H27: -0.02335047129
B28: Клиенты, передавшие свои средства в ДУ | E28: =Сентябрь2015!F28 -> 4323 | F28: 4266 | G28: -57 | H28: -0.01318528799
B29: Всего | E29: =Сентябрь2015!F29 -> 1027438 | F29: 1030251 | G29: 2813 | H29: 0.002737878101
B32: Количество активных клиентов в Системе торгов (совершивших в течение месяца хотя бы одну сделку): | H32: Таблица 3
B33: Группы клиентов | E33: =E11 -> 2015-09-30 | F33: =F11 -> 2015-10-30 | G33: Изменение (ед.) | H33: Изменение (%)
B34: Физические лица | E34: =Сентябрь2015!F34 -> 67993 | F34: 73607 | G34: =F34-E34 -> 5614 | H34: =F34/E34-1 -> 0.08256732311
B35: Юридические лица | E35: =Сентябрь2015!F35 -> 1113 | F35: 1135 | G35: 22 | H35: 0.01976639712
B36: Нерезиденты | E36: =Сентябрь2015!F36 -> 611 | F36: 644 | G36: 33 | H36: 0.05400981997
B37: Нерезиденты - физические лица | E37: =Сентябрь2015!F37 -> 284 | F37: 311 | G37: 27 | H37: 0.09507042254
B38: Нерезиденты - юридические лица | E38: =Сентябрь2015!F38 -> 327 | F38: 333 | G38: 6 | H38: 0.01834862385
B39: Клиенты, передавшие свои средства в ДУ | E39: =Сентябрь2015!F39 -> 478 | F39: 520 | G39: 42 | H39: 0.08786610879
B40: Всего | E40: =Сентябрь2015!F40 -> 70195 | F40: 75906 | G40: 5711 | H40: 0.08135907116
B44: Изменение количества уникальных клиентов - ретроспективные данные
B48: Количество уникальных клиентов в Системе торгов (по состоянию на последний день месяца) (ежегодная статистика): | H48: Таблица 1
B49: Группы клиентов | E49: 2010-12-31 | F49: 2011-12-31 | G49: 2012-12-31 | H49: 2013-12-31 | I49: 2014-12-31
B50: Физические лица | E50: 714295 | F50: 772175 | G50: 805549 | H50: 881844 | I50: 944559
B51: Юридические лица | E51: 17170 | F51: 16850 | G51: 17821 | H51: 19539 | I51: 20178
B52: Нерезиденты | E52: 4295 | F52: 5058 | G52: 5876 | H52: 6957 | I52: 7486
B53: Клиенты, передавшие свои средства в ДУ | E53: 5348 | F53: 5242 | G53: 5261 | H53: 5182 | I53: 5142
B54: Всего | E54: 741108 | F54: 799325 | G54: 834507 | H54: 913522 | I54: 977365
B82: Количество уникальных клиентов в Системе торгов (по состоянию на последний день месяца) (за последние 6 месяцев): | H82: Таблица 2
B83: Группы клиентов | C83: =EDATE(D83,-1) -> 2015-05-30 | D83: =EDATE(E83,-1) -> 2015-06-30 | E83: =EDATE(F83,-1) -> 2015-07-30 | F83: =EDATE(G83,-1) -> 2015-08-30 | G83: =EDATE(H83,-1) -> 2015-09-30 | H83: =EDATE(E11,1) -> 2015-10-30
B84: Физические лица | C84: 975467 | D84: 980206 | E84: 984614 | F84: 991257 | G84: 993268 | H84: 996118
B85: Юридические лица | C85: 20771 | D85: 20872 | E85: 20904 | F85: 20981 | G85: 21072 | H85: 20973
B86: Нерезиденты | C86: 8400 | D86: 8385 | E86: 8823 | F86: 8602 | G86: 8775 | H86: 8894
B87: Клиенты, передавшие свои средства в ДУ | C87: 4915 | D87: 4856 | E87: 4715 | F87: 4694 | G87: 4323 | H87: 4266
B88: Всего | C88: 1009553 | D88: 1014319 | E88: 1019056 | F88: 1025534 | G88: 1027438 | H88: 1030251
B124: Дополнительные показатели за | C124: =B3 -> 2015-10-31
H127: Таблица 1
B128: Участники торгов | G128: Абсолютные показатели
B129: Количество Участников торгов, имеющих активных клиентов | G129: 398
B133: Списки ведущих операторов фондового рынка - клиенты Участников торгов за | F133: =C6 -> 2015-10-31
B136: Ведущие операторы рынка – число зарегистрированных клиентов | H136: Таблица 1
B137: (по общему количеству уникальных клиентов всех типов, зарегистрированных в системе торгов биржи, в том числе в течение месяца)
B138: Наименование Участника торгов | G138: Количество клиентов
B139: ВТБ 24 (ПАО) | C139: ВТБ 24 (ПАО) | D139: ВТБ 24 (ПАО) | E139: ВТБ 24 (ПАО) | F139: ВТБ 24 (ПАО) | G139: 225299 | H139: 225299
B140: Сбербанк | C140: Сбербанк | D140: Сбербанк | E140: Сбербанк | F140: Сбербанк | G140: 179754 | H140: 179754
B141: АО "ФИНАМ" | C141: АО "ФИНАМ" | D141: АО "ФИНАМ" | E141: АО "ФИНАМ" | F141: АО "ФИНАМ" | G141: 136190 | H141: 136190
B142: ФГ БКС | C142: ФГ БКС | D142: ФГ БКС | E142: ФГ БКС | F142: ФГ БКС | G142: 136124 | H142: 136124
B143: ФГ "ОТКРЫТИЕ" | C143: ФГ "ОТКРЫТИЕ" | D143: ФГ "ОТКРЫТИЕ" | E143: ФГ "ОТКРЫТИЕ" | F143: ФГ "ОТКРЫТИЕ" | G143: 68268 | H143: 68268
B144: АО "АЛЬФА-БАНК" | C144: АО "АЛЬФА-БАНК" | D144: АО "АЛЬФА-БАНК" | E144: АО "АЛЬФА-БАНК" | F144: АО "АЛЬФА-БАНК" | G144: 59876 | H144: 59876
B145: ООО "АТОН" | C145: ООО "АТОН" | D145: ООО "АТОН" | E145: ООО "АТОН" | F145: ООО "АТОН" | G145: 47587 | H145: 47587
B146: АЛОР БРОКЕР | C146: АЛОР БРОКЕР | D146: АЛОР БРОКЕР | E146: АЛОР БРОКЕР | F146: АЛОР БРОКЕР | G146: 31729 | H146: 31729
B147: КИТ Финанс (ООО) | C147: КИТ Финанс (ООО) | D147: КИТ Финанс (ООО) | E147: КИТ Финанс (ООО) | F147: КИТ Финанс (ООО) | G147: 22236 | H147: 22236
B148: ООО "Инвестиционная палата" | C148: ООО "Инвестиционная палата" | D148: ООО "Инвестиционная палата" | E148: ООО "Инвестиционная палата" | F148: ООО "Инвестиционная палата" | G148: 19824 | H148: 19824
B151: Ведущие операторы рынка – число активных клиентов | H151: Таблица 2
B152: (по количеству уникальных клиентов, совершивших хотя бы одну сделку за месяц)
B153: Наименование Участника торгов | G153: Количество клиентов
B154: Сбербанк | C154: Сбербанк | D154: Сбербанк | E154: Сбербанк | F154: Сбербанк | G154: 14186 | H154: 14186
B155: ВТБ 24 (ПАО) | C155: ВТБ 24 (ПАО) | D155: ВТБ 24 (ПАО) | E155: ВТБ 24 (ПАО) | F155: ВТБ 24 (ПАО) | G155: 11412 | H155: 11412
B156: АО "ФИНАМ" | C156: АО "ФИНАМ" | D156: АО "ФИНАМ" | E156: АО "ФИНАМ" | F156: АО "ФИНАМ" | G156: 10784 | H156: 10784
B157: ФГ БКС | C157: ФГ БКС | D157: ФГ БКС | E157: ФГ БКС | F157: ФГ БКС | G157: 10707 | H157: 10707
B158: ФГ "ОТКРЫТИЕ" | C158: ФГ "ОТКРЫТИЕ" | D158: ФГ "ОТКРЫТИЕ" | E158: ФГ "ОТКРЫТИЕ" | F158: ФГ "ОТКРЫТИЕ" | G158: 6946 | H158: 6946
B159: АО "АЛЬФА-БАНК" | C159: АО "АЛЬФА-БАНК" | D159: АО "АЛЬФА-БАНК" | E159: АО "АЛЬФА-БАНК" | F159: АО "АЛЬФА-БАНК" | G159: 4335 | H159: 4335
B160: ООО "АТОН" | C160: ООО "АТОН" | D160: ООО "АТОН" | E160: ООО "АТОН" | F160: ООО "АТОН" | G160: 3073 | H160: 3073
B161: Банк ГПБ (АО) | C161: Банк ГПБ (АО) | D161: Банк ГПБ (АО) | E161: Банк ГПБ (АО) | F161: Банк ГПБ (АО) | G161: 2167 | H161: 2167
B162: КИТ Финанс (ООО) | C162: КИТ Финанс (ООО) | D162: КИТ Финанс (ООО) | E162: КИТ Финанс (ООО) | F162: КИТ Финанс (ООО) | G162: 1432 | H162: 1432
B163: АЛОР БРОКЕР | C163: АЛОР БРОКЕР | D163: АЛОР БРОКЕР | E163: АЛОР БРОКЕР | F163: АЛОР БРОКЕР | G163: 1287 | H163: 1287
B166: Ведущие операторы рынка – объем клиентских операций | H166: Таблица 3
B167: (по стоимостному объему сделок, заключенных в интересах клиентов за месяц)
B168: Наименование Участника торгов | G168: Торговый оборот, руб.
B169: ООО "Ренессанс Брокер" | C169: ООО "Ренессанс Брокер" | D169: ООО "Ренессанс Брокер" | E169: ООО "Ренессанс Брокер" | F169: ООО "Ренессанс Брокер" | G169: 1.706860736e+12 | H169: 1.706860736e+12
B170: ФГ "ОТКРЫТИЕ" | C170: ФГ БКС | D170: ФГ БКС | E170: ФГ БКС | F170: ФГ БКС | G170: 1.473522522e+12 | H170: 1.473522522e+12
B171: ФГ БКС | C171: ФГ "ОТКРЫТИЕ" | D171: ФГ "ОТКРЫТИЕ" | E171: ФГ "ОТКРЫТИЕ" | F171: ФГ "ОТКРЫТИЕ" | G171: 1.377060864e+12 | H171: 1.377060864e+12
B172: Сбербанк | C172: Сбербанк | D172: Сбербанк | E172: Сбербанк | F172: Сбербанк | G172: 5.680954563e+11 | H172: 5.680954563e+11
B173: ООО "ИК ВЕЛЕС Капитал" | C173: ПАО "Промсвязьбанк" | D173: ПАО "Промсвязьбанк" | E173: ПАО "Промсвязьбанк" | F173: ПАО "Промсвязьбанк" | G173: 4.499121745e+11 | H173: 4.499121745e+11
B174: ПАО "Промсвязьбанк" | C174: ООО "ИК ВЕЛЕС Капитал" | D174: ООО "ИК ВЕЛЕС Капитал" | E174: ООО "ИК ВЕЛЕС Капитал" | F174: ООО "ИК ВЕЛЕС Капитал" | G174: 3.76927728e+11 | H174: 3.76927728e+11
B175: ООО "БК РЕГИОН" | C175: ООО "Меррилл Линч Секьюритиз" | D175: ООО "Меррилл Линч Секьюритиз" | E175: ООО "Меррилл Линч Секьюритиз" | F175: ООО "Меррилл Линч Секьюритиз" | G175: 3.010956455e+11 | H175: 3.010956455e+11
B176: АО "ФИНАМ" | C176: АО "ФИНАМ" | D176: АО "ФИНАМ" | E176: АО "ФИНАМ" | F176: АО "ФИНАМ" | G176: 2.942575955e+11 | H176: 2.942575955e+11
B177: ПАО КБ "УБРиР" | C177: ООО "БК РЕГИОН" | D177: ООО "БК РЕГИОН" | E177: ООО "БК РЕГИОН" | F177: ООО "БК РЕГИОН" | G177: 2.237411753e+11 | H177: 2.237411753e+11
B178: КБ "ЛОКО-Банк" (АО) | C178: КБ "ЛОКО-Банк" (АО) | D178: КБ "ЛОКО-Банк" (АО) | E178: КБ "ЛОКО-Банк" (АО) | F178: КБ "ЛОКО-Банк" (АО) | G178: 2.160142924e+11 | H178: 2.160142924e+11

Sheet Ноябрь2015
B2: Клиенты Участников торгов Фондовой биржи ММВБ
B3: 2015-11-30
B6: Динамика количества клиентов за | C6: =B3 -> 2015-11-30
B10: Количество зарегистрированных клиентов в Системе торгов (по состоянию на последний день месяца): | H10: Таблица 1
B11: Группы клиентов | E11: =EDATE(B3,-1) -> 2015-10-30 | F11: =B3 -> 2015-11-30 | G11: Изменение (ед.) | H11: Изменение (%)
B12: Физические лица | E12: =Октябрь2015!F12 -> 1259135 | F12: 1276149 | G12: =F12-E12 -> 17014 | H12: =F12/E12-1 -> 0.01351245101
B13: Юридические лица | E13: =Октябрь2015!F13 -> 35600 | F13: 35516 | G13: =F13-E13 -> -84 | H13: -0.002359550562
B14: Нерезиденты | E14: =Октябрь2015!F14 -> 13582 | F14: 13356 | G14: -226 | H14: -0.01663967015
B15: Нерезиденты - физические лица | E15: =Октябрь2015!F15 -> 4575 | F15: 4459 | G15: -116 | H15: -0.02535519126
B16: Нерезиденты - юридические лица | E16: =Октябрь2015!F16 -> 9007 | F16: 8897 | G16: -110 | H16: -0.01221272344
B17: Клиенты, передавшие свои средства в ДУ | E17: =Октябрь2015!F17 -> 15113 | F17: 15217 | G17: 104 | H17: 0.006881492755
B18: Всего | E18: =Октябрь2015!F18 -> 1323430 | F18: 1340238 | G18: 16808 | H18: 0.01270033171
B21: Количество уникальных клиентов в Системе торгов (по состоянию на последний день месяца): | H21: Таблица 2
B22: Группы клиентов | E22: =E11 -> 2015-10-30 | F22: =F11 -> 2015-11-30 | G22: Изменение (ед.) | H22: Изменение (%)
B23: Физические лица | E23: =Октябрь2015!F23 -> 996118 | F23: 1001556 | G23: =F23-E23 -> 5438 | H23: =F23/E23-1 -> 0.005459192586
B24: Юридические лица | E24: =Октябрь2015!F24 -> 20973 | F24: 21007 | G24: =F24-E24 -> 34 | H24: =F24/E24-1 -> 0.001621131932
B25: Нерезиденты | E25: =Октябрь2015!F25 -> 8894 | F25: 8699 | G25: -195 | H25: -0.02192489319
B26: Нерезиденты - физические лица | E26: =Октябрь2015!F26 -> 4335 | F26: 4231 | G26: -104 | H26: -0.02399077278
B27: Нерезиденты - юридические лица | E27: =Октябрь2015!F27 -> 4559 | F27: 4468 | G27: -91 | H27: -0.01996051766
B28: Клиенты, передавшие свои средства в ДУ | E28: =Октябрь2015!F28 -> 4266 | F28: 4148 | G28: -118 | H28: -0.02766057196
B29: Всего | E29: =Октябрь2015!F29 -> 1030251 | F29: 1035410 | G29: 5159 | H29: 0.005007517586
B32: Количество активных клиентов в Системе торгов (совершивших в течение месяца хотя бы одну сделку): | H32: Таблица 3
B33: Группы клиентов | E33: =E11 -> 2015-10-30 | F33: =F11 -> 2015-11-30 | G33: Изменение (ед.) | H33: Изменение (%)
B34: Физические лица | E34: =Октябрь2015!F34 -> 73607 | F34: 75190 | G34: =F34-E34 -> 1583 | H34: =F34/E34-1 -> 0.02150610676
B35: Юридические лица | E35: =Октябрь2015!F35 -> 1135 | F35: 1109 | G35: -26 | H35: -0.02290748899
B36: Нерезиденты | E36: =Октябрь2015!F36 -> 644 | F36: 649 | G36: 5 | H36: 0.007763975155
B37: Нерезиденты - физические лица | E37: =Октябрь2015!F37 -> 311 | F37: 304 | G37: -7 | H37: -0.02250803859
B38: Нерезиденты - юридические лица | E38: =Октябрь2015!F38 -> 333 | F38: 345 | G38: 12 | H38: 0.03603603604
B39: Клиенты, передавшие свои средства в ДУ | E39: =Октябрь2015!F39 -> 520 | F39: 469 | G39: -51 | H39: -0.09807692308
B40: Всего | E40: =Октябрь2015!F40 -> 75906 | F40: 77417 | G40: 1511 | H40: 0.01990619977
B44: Изменение количества уникальных клиентов - ретроспективные данные
B48: Количество уникальных клиентов в Системе торгов (по состоянию на последний день месяца) (ежегодная статистика): | H48: Таблица 1
B49: Группы клиентов | E49: 2010-12-31 | F49: 2011-12-31 | G49: 2012-12-31 | H49: 2013-12-31 | I49: 2014-12-31
B50: Физические лица | E50: 714295 | F50: 772175 | G50: 805549 | H50: 881844 | I50: 944559
B51: Юридические лица | E51: 17170 | F51: 16850 | G51: 17821 | H51: 19539 | I51: 20178
B52: Нерезиденты | E52: 4295 | F52: 5058 | G52: 5876 | H52: 6957 | I52: 7486
B53: Клиенты, передавшие свои средства в ДУ | E53: 5348 | F53: 5242 | G53: 5261 | H53: 5182 | I53: 5142
B54: Всего | E54: 741108 | F54: 799325 | G54: 834507 | H54: 913522 | I54: 977365
B82: Количество уникальных клиентов в Системе торгов (по состоянию на последний день месяца) (за последние 6 месяцев): | H82: Таблица 2
B83: Группы клиентов | C83: =EDATE(D83,-1) -> 2015-06-30 | D83: =EDATE(E83,-1) -> 2015-07-30 | E83: =EDATE(F83,-1) -> 2015-08-30 | F83: =EDATE(G83,-1) -> 2015-09-30 | G83: =EDATE(H83,-1) -> 2015-10-30 | H83: =EDATE(E11,1) -> 2015-11-30
B84: Физические лица | C84: 980206 | D84: 984614 | E84: 991257 | F84: 993268 | G84: 996118 | H84: 1001556
B85: Юридические лица | C85: 20872 | D85: 20904 | E85: 20981 | F85: 21072 | G85: 20973 | H85: 21007
B86: Нерезиденты | C86: 8385 | D86: 8823 | E86: 8602 | F86: 8775 | G86: 8894 | H86: 8699
B87: Клиенты, передавшие свои средства в ДУ | C87: 4856 | D87: 4715 | E87: 4694 | F87: 4323 | G87: 4266 | H87: 4148
B88: Всего | C88: 1014319 | D88: 1019056 | E88: 1025534 | F88: 1027438 | G88: 1030251 | H88: 1035410
B124: Дополнительные показатели за | C124: =B3 -> 2015-11-30
H127: Таблица 1
B128: Участники торгов | G128: Абсолютные показатели
B129: Количество Участников торгов, имеющих активных клиентов | G129: 387
B133: Списки ведущих операторов фондового рынка - клиенты Участников торгов за | F133: =C6 -> 2015-11-30
B136: Ведущие операторы рынка – число зарегистрированных клиентов | H136: Таблица 1
B137: (по общему количеству уникальных клиентов всех типов, зарегистрированных в системе торгов биржи, в том числе в течение месяца)
B138: Наименование Участника торгов | G138: Количество клиентов
B139: ВТБ 24 (ПАО) | C139: ВТБ 24 (ПАО) | D139: ВТБ 24 (ПАО) | E139: ВТБ 24 (ПАО) | F139: ВТБ 24 (ПАО) | G139: 226612 | H139: 226612
B140: Сбербанк | C140: Сбербанк | D140: Сбербанк | E140: Сбербанк | F140: Сбербанк | G140: 178604 | H140: 178604
B141: ФГ БКС | C141: ФГ БКС | D141: ФГ БКС | E141: ФГ БКС | F141: ФГ БКС | G141: 137947 | H141: 137947
B142: АО "ФИНАМ" | C142: АО "ФИНАМ" | D142: АО "ФИНАМ" | E142: АО "ФИНАМ" | F142: АО "ФИНАМ" | G142: 137597 | H142: 137597
B143: ФГ "ОТКРЫТИЕ" | C143: ФГ "ОТКРЫТИЕ" | D143: ФГ "ОТКРЫТИЕ" | E143: ФГ "ОТКРЫТИЕ" | F143: ФГ "ОТКРЫТИЕ" | G143: 68991 | H143: 68991
B144: АО "АЛЬФА-БАНК" | C144: АО "АЛЬФА-БАНК" | D144: АО "АЛЬФА-БАНК" | E144: АО "АЛЬФА-БАНК" | F144: АО "АЛЬФА-БАНК" | G144: 60116 | H144: 60116
B145: ООО "АТОН" | C145: ООО "АТОН" | D145: ООО "АТОН" | E145: ООО "АТОН" | F145: ООО "АТОН" | G145: 47742 | H145: 47742
B146: АЛОР БРОКЕР | C146: АЛОР БРОКЕР | D146: АЛОР БРОКЕР | E146: АЛОР БРОКЕР | F146: АЛОР БРОКЕР | G146: 31850 | H146: 31850
B147: КИТ Финанс (ООО) | C147: КИТ Финанс (ООО) | D147: КИТ Финанс (ООО) | E147: КИТ Финанс (ООО) | F147: КИТ Финанс (ООО) | G147: 20742 | H147: 20742
B148: ООО "Инвестиционная палата" | C148: ООО "Инвестиционная палата" | D148: ООО "Инвестиционная палата" | E148: ООО "Инвестиционная палата" | F148: ООО "Инвестиционная палата" | G148: 19824 | H148: 19824
B151: Ведущие операторы рынка – число активных клиентов | H151: Таблица 2
B152: (по количеству уникальных клиентов, совершивших хотя бы одну сделку за месяц)
B153: Наименование Участника торгов | G153: Количество клиентов
B154: Сбербанк | C154: Сбербанк | D154: Сбербанк | E154: Сбербанк | F154: Сбербанк | G154: 15356 | H154: 15356
B155: ВТБ 24 (ПАО) | C155: ВТБ 24 (ПАО) | D155: ВТБ 24 (ПАО) | E155: ВТБ 24 (ПАО) | F155: ВТБ 24 (ПАО) | G155: 11509 | H155: 11509
B156: ФГ БКС | C156: ФГ БКС | D156: ФГ БКС | E156: ФГ БКС | F156: ФГ БКС | G156: 10912 | H156: 10912
B157: АО "ФИНАМ" | C157: АО "ФИНАМ" | D157: АО "ФИНАМ" | E157: АО "ФИНАМ" | F157: АО "ФИНАМ" | G157: 10815 | H157: 10815
B158: ФГ "ОТКРЫТИЕ" | C158: ФГ "ОТКРЫТИЕ" | D158: ФГ "ОТКРЫТИЕ" | E158: ФГ "ОТКРЫТИЕ" | F158: ФГ "ОТКРЫТИЕ" | G158: 7085 | H158: 7085
B159: АО "АЛЬФА-БАНК" | C159: АО "АЛЬФА-БАНК" | D159: АО "АЛЬФА-БАНК" | E159: АО "АЛЬФА-БАНК" | F159: АО "АЛЬФА-БАНК" | G159: 4278 | H159: 4278
B160: ООО "АТОН" | C160: ООО "АТОН" | D160: ООО "АТОН" | E160: ООО "АТОН" | F160: ООО "АТОН" | G160: 3140 | H160: 3140
B161: Банк ГПБ (АО) | C161: Банк ГПБ (АО) | D161: Банк ГПБ (АО) | E161: Банк ГПБ (АО) | F161: Банк ГПБ (АО) | G161: 2276 | H161: 2276
B162: КИТ Финанс (ООО) | C162: КИТ Финанс (ООО) | D162: КИТ Финанс (ООО) | E162: КИТ Финанс (ООО) | F162: КИТ Финанс (ООО) | G162: 1420 | H162: 1420
B163: АЛОР БРОКЕР | C163: АЛОР БРОКЕР | D163: АЛОР БРОКЕР | E163: АЛОР БРОКЕР | F163: АЛОР БРОКЕР | G163: 1289 | H163: 1289
B166: Ведущие операторы рынка – объем клиентских операций | H166: Таблица 3
B167: (по стоимостному объему сделок, заключенных в интересах клиентов за месяц)
B168: Наименование Участника торгов | G168: Торговый оборот, руб.
B169: ФГ БКС | C169: ФГ БКС | D169: ФГ БКС | E169: ФГ БКС | F169: ФГ БКС | G169: 1.302483484e+12 | H169: 1.302483484e+12
B170: ООО "Ренессанс Брокер" | C170: ООО "Ренессанс Брокер" | D170: ООО "Ренессанс Брокер" | E170: ООО "Ренессанс Брокер" | F170: ООО "Ренессанс Брокер" | G170: 1.257092579e+12 | H170: 1.257092579e+12
B171: ФГ "ОТКРЫТИЕ" | C171: ФГ "ОТКРЫТИЕ" | D171: ФГ "ОТКРЫТИЕ" | E171: ФГ "ОТКРЫТИЕ" | F171: ФГ "ОТКРЫТИЕ" | G171: 1.165559245e+12 | H171: 1.165559245e+12
B172: Сбербанк | C172: Сбербанк | D172: Сбербанк | E172: Сбербанк | F172: Сбербанк | G172: 6.819827149e+11 | H172: 6.819827149e+11
B173: ПАО "Промсвязьбанк" | C173: ПАО "Промсвязьбанк" | D173: ПАО "Промсвязьбанк" | E173: ПАО "Промсвязьбанк" | F173: ПАО "Промсвязьбанк" | G173: 3.36527965e+11 | H173: 3.36527965e+11
B174: ООО "ИК ВЕЛЕС Капитал" | C174: ООО "ИК ВЕЛЕС Капитал" | D174: ООО "ИК ВЕЛЕС Капитал" | E174: ООО "ИК ВЕЛЕС Капитал" | F174: ООО "ИК ВЕЛЕС Капитал" | G174: 2.848076985e+11 | H174: 2.848076985e+11
B175: АО "ФИНАМ" | C175: АО "ФИНАМ" | D175: АО "ФИНАМ" | E175: АО "ФИНАМ" | F175: АО "ФИНАМ" | G175: 2.490957821e+11 | H175: 2.490957821e+11
B176: ПАО КБ "УБРиР" | C176: ПАО КБ "УБРиР" | D176: ПАО КБ "УБРиР" | E176: ПАО КБ "УБРиР" | F176: ПАО КБ "УБРиР" | G176: 2.11771969e+11 | H176: 2.11771969e+11
B177: ООО "БК РЕГИОН" | C177: ООО "БК РЕГИОН" | D177: ООО "БК РЕГИОН" | E177: ООО "БК РЕГИОН" | F177: ООО "БК РЕГИОН" | G177: 1.893693994e+11 | H177: 1.893693994e+11
B178: АО "АЛЬФА-БАНК" | C178: АО "АЛЬФА-БАНК" | D178: АО "АЛЬФА-БАНК" | E178: АО "АЛЬФА-БАНК" | F178: АО "АЛЬФА-БАНК" | G178: 1.631698218e+11 | H178: 1.631698218e+11

Sheet Декабрь2015
B2: Клиенты Участников торгов Фондовой биржи ММВБ
B3: 2015-12-31
B6: Динамика количества клиентов за | C6: =B3 -> 2015-12-31
B10: Количество зарегистрированных клиентов в Системе торгов (по состоянию на последний день месяца): | H10: Таблица 1
B11: Группы клиентов | E11: =EDATE(B3,-1) -> 2015-11-30 | F11: =B3 -> 2015-12-31 | G11: Изменение (ед.) | H11: Изменение (%)
B12: Физические лица | E12: =Ноябрь2015!F12 -> 1276149 | F12: 1296101 | G12: =F12-E12 -> 19952 | H12: =F12/E12-1 -> 0.01563453797
B13: Юридические лица | E13: =Ноябрь2015!F13 -> 35516 | F13: 34512 | G13: =F13-E13 -> -1004 | H13: -0.02826894921
B14: Нерезиденты | E14: =Ноябрь2015!F14 -> 13356 | F14: 13405 | G14: 49 | H14: 0.003668763103
B15: Нерезиденты - физические лица | E15: =Ноябрь2015!F15 -> 4459 | F15: 4571 | G15: 112 | H15: 0.0251177394
B16: Нерезиденты - юридические лица | E16: =Ноябрь2015!F16 -> 8897 | F16: 8834 | G16: -63 | H16: -0.007081038552
B17: Клиенты, передавшие свои средства в ДУ | E17: =Ноябрь2015!F17 -> 15217 | F17: 16540 | G17: 1323 | H17: 0.08694223566
B18: Всего | E18: =Ноябрь2015!F18 -> 1340238 | F18: 1360558 | G18: 20320 | H18: 0.01516148624
B21: Количество уникальных клиентов в Системе торгов (по состоянию на последний день месяца): | H21: Таблица 2
B22: Группы клиентов | E22: =E11 -> 2015-11-30 | F22: =F11 -> 2015-12-31 | G22: Изменение (ед.) | H22: Изменение (%)
B23: Физические лица | E23: =Ноябрь2015!F23 -> 1001556 | F23: 1006751 | G23: =F23-E23 -> 5195 | H23: =F23/E23-1 -> 0.005186929138
B24: Юридические лица | E24: =Ноябрь2015!F24 -> 21007 | F24: 20753 | G24: =F24-E24 -> -254 | H24: =F24/E24-1 -> -0.01209120769
B25: Нерезиденты | E25: =Ноябрь2015!F25 -> 8699 | F25: 8729 | G25: 30 | H25: 0.003448672261
B26: Нерезиденты - физические лица | E26: =Ноябрь2015!F26 -> 4231 | F26: 4315 | G26: 84 | H26: 0.01985346254
B27: Нерезиденты - юридические лица | E27: =Ноябрь2015!F27 -> 4468 | F27: 4414 | G27: -54 | H27: -0.01208594449
B28: Клиенты, передавшие свои средства в ДУ | E28: =Ноябрь2015!F28 -> 4148 | F28: 3836 | G28: -312 | H28: -0.07521697203
B29: Всего | E29: =Ноябрь2015!F29 -> 1035410 | F29: 1040069 | G29: 4659 | H29: 0.004499666799
B32: Количество активных клиентов в Системе торгов (совершивших в течение месяца хотя бы одну сделку): | H32: Таблица 3
B33: Группы клиентов | E33: =E11 -> 2015-11-30 | F33: =F11 -> 2015-12-31 | G33: Изменение (ед.) | H33: Изменение (%)
B34: Физические лица | E34: =Ноябрь2015!F34 -> 75190 | F34: 74911 | G34: =F34-E34 -> -279 | H34: =F34/E34-1 -> -0.003710599814
B35: Юридические лица | E35: =Ноябрь2015!F35 -> 1109 | F35: 1188 | G35: 79 | H35: 0.07123534716
B36: Нерезиденты | E36: =Ноябрь2015!F36 -> 649 | F36: 659 | G36: 10 | H36: 0.01540832049
B37: Нерезиденты - физические лица | E37: =Ноябрь2015!F37 -> 304 | F37: 305 | G37: 1 | H37: 0.003289473684
B38: Нерезиденты - юридические лица | E38: =Ноябрь2015!F38 -> 345 | F38: 354 | G38: 9 | H38: 0.02608695652
B39: Клиенты, передавшие свои средства в ДУ | E39: =Ноябрь2015!F39 -> 469 | F39: 474 | G39: 5 | H39: 0.01066098081
B40: Всего | E40: =Ноябрь2015!F40 -> 77417 | F40: 77232 | G40: -185 | H40: -0.002389656019
B44: Изменение количества уникальных клиентов - ретроспективные данные
B48: Количество уникальных клиентов в Системе торгов (по состоянию на последний день месяца) (ежегодная статистика): | H48: Таблица 1
B49: Группы клиентов | E49: 2011-12-31 | F49: 2012-12-31 | G49: 2013-12-31 | H49: 2014-12-31 | I49: 2015-12-31
B50: Физические лица | E50: 772175 | F50: 805549 | G50: 881844 | H50: 944559 | I50: 1006751
B51: Юридические лица | E51: 16850 | F51: 17821 | G51: 19539 | H51: 20178 | I51: 20753
B52: Нерезиденты | E52: 5058 | F52: 5876 | G52: 6957 | H52: 7486 | I52: 8729
B53: Клиенты, передавшие свои средства в ДУ | E53: 5242 | F53: 5261 | G53: 5182 | H53: 5142 | I53: 3836
B54: Всего | E54: 799325 | F54: 834507 | G54: 913522 | H54: 977365 | I54: 1040069
B82: Количество уникальных клиентов в Системе торгов (по состоянию на последний день месяца) (за последние 6 месяцев): | H82: Таблица 2
B83: Группы клиентов | C83: =EDATE(D83,-1) -> 2015-07-30 | D83: =EDATE(E83,-1) -> 2015-08-30 | E83: =EDATE(F83,-1) -> 2015-09-30 | F83: =EDATE(G83,-1) -> 2015-10-30 | G83: =EDATE(H83,-1) -> 2015-11-30 | H83: =EDATE(E11,1) -> 2015-12-30
B84: Физические лица | C84: 984614 | D84: 991257 | E84: 993268 | F84: 996118 | G84: 1001556 | H84: 1006751
B85: Юридические лица | C85: 20904 | D85: 20981 | E85: 21072 | F85: 20973 | G85: 21007 | H85: 20753
B86: Нерезиденты | C86: 8823 | D86: 8602 | E86: 8775 | F86: 8894 | G86: 8699 | H86: 8729
B87: Клиенты, передавшие свои средства в ДУ | C87: 4715 | D87: 4694 | E87: 4323 | F87: 4266 | G87: 4148 | H87: 3836
B88: Всего | C88: 1019056 | D88: 1025534 | E88: 1027438 | F88: 1030251 | G88: 1035410 | H88: 1040069
B124: Дополнительные показатели за | C124: =B3 -> 2015-12-31
H127: Таблица 1
B128: Участники торгов | G128: Абсолютные показатели
B129: Количество Участников торгов, имеющих активных клиентов | G129: 387
B133: Списки ведущих операторов фондового рынка - клиенты Участников торгов за | F133: =C6 -> 2015-12-31
B136: Ведущие операторы рынка – число зарегистрированных клиентов | H136: Таблица 1
B137: (по общему количеству уникальных клиентов всех типов, зарегистрированных в системе торгов биржи, в том числе в течение месяца)
B138: Наименование Участника торгов | G138: Количество клиентов
B139: ВТБ 24 (ПАО) | C139: ВТБ 24 (ПАО) | D139: ВТБ 24 (ПАО) | E139: ВТБ 24 (ПАО) | F139: ВТБ 24 (ПАО) | G139: 228128 | H139: 228128
B140: Сбербанк | C140: Сбербанк | D140: Сбербанк | E140: Сбербанк | F140: Сбербанк | G140: 180045 | H140: 180045
B141: ФГ БКС | C141: ФГ БКС | D141: ФГ БКС | E141: ФГ БКС | F141: ФГ БКС | G141: 140772 | H141: 140772
B142: АО "ФИНАМ" | C142: АО "ФИНАМ" | D142: АО "ФИНАМ" | E142: АО "ФИНАМ" | F142: АО "ФИНАМ" | G142: 139519 | H142: 139519
B143: ФГ "ОТКРЫТИЕ" | C143: ФГ "ОТКРЫТИЕ" | D143: ФГ "ОТКРЫТИЕ" | E143: ФГ "ОТКРЫТИЕ" | F143: ФГ "ОТКРЫТИЕ" | G143: 70924 | H143: 70924
B144: АО "АЛЬФА-БАНК" | C144: АО "АЛЬФА-БАНК" | D144: АО "АЛЬФА-БАНК" | E144: АО "АЛЬФА-БАНК" | F144: АО "АЛЬФА-БАНК" | G144: 60429 | H144: 60429
B145: ООО "АТОН" | C145: ООО "АТОН" | D145: ООО "АТОН" | E145: ООО "АТОН" | F145: ООО "АТОН" | G145: 47957 | H145: 47957
B146: АЛОР БРОКЕР | C146: АЛОР БРОКЕР | D146: АЛОР БРОКЕР | E146: АЛОР БРОКЕР | F146: АЛОР БРОКЕР | G146: 35025 | H146: 35025
B147: КИТ Финанс (ООО) | C147: КИТ Финанс (ООО) | D147: КИТ Финанс (ООО) | E147: КИТ Финанс (ООО) | F147: КИТ Финанс (ООО) | G147: 20839 | H147: 20839
B148: ООО "Инвестиционная палата" | C148: ООО "Инвестиционная палата" | D148: ООО "Инвестиционная палата" | E148: ООО "Инвестиционная палата" | F148: ООО "Инвестиционная палата" | G148: 19824 | H148: 19824
B151: Ведущие операторы рынка – число активных клиентов | H151: Таблица 2
B152: (по количеству уникальных клиентов, совершивших хотя бы одну сделку за месяц)
B153: Наименование Участника торгов | G153: Количество клиентов
B154: Сбербанк | C154: Сбербанк | D154: Сбербанк | E154: Сбербанк | F154: Сбербанк | G154: 14138 | H154: 14138
B155: ФГ БКС | C155: ФГ БКС | D155: ФГ БКС | E155: ФГ БКС | F155: ФГ БКС | G155: 11644 | H155: 11644
B156: ВТБ 24 (ПАО) | C156: ВТБ 24 (ПАО) | D156: ВТБ 24 (ПАО) | E156: ВТБ 24 (ПАО) | F156: ВТБ 24 (ПАО) | G156: 11402 | H156: 11402
B157: АО "ФИНАМ" | C157: АО "ФИНАМ" | D157: АО "ФИНАМ" | E157: АО "ФИНАМ" | F157: АО "ФИНАМ" | G157: 10484 | H157: 10484
B158: ФГ "ОТКРЫТИЕ" | C158: ФГ "ОТКРЫТИЕ" | D158: ФГ "ОТКРЫТИЕ" | E158: ФГ "ОТКРЫТИЕ" | F158: ФГ "ОТКРЫТИЕ" | G158: 7698 | H158: 7698
B159: АО "АЛЬФА-БАНК" | C159: АО "АЛЬФА-БАНК" | D159: АО "АЛЬФА-БАНК" | E159: АО "АЛЬФА-БАНК" | F159: АО "АЛЬФА-БАНК" | G159: 4198 | H159: 4198
B160: ООО "АТОН" | C160: ООО "АТОН" | D160: ООО "АТОН" | E160: ООО "АТОН" | F160: ООО "АТОН" | G160: 3109 | H160: 3109
B161: Банк ГПБ (АО) | C161: Банк ГПБ (АО) | D161: Банк ГПБ (АО) | E161: Банк ГПБ (АО) | F161: Банк ГПБ (АО) | G161: 2307 | H161: 2307
B162: КИТ Финанс (ООО) | C162: КИТ Финанс (ООО) | D162: КИТ Финанс (ООО) | E162: КИТ Финанс (ООО) | F162: КИТ Финанс (ООО) | G162: 1419 | H162: 1419
B163: ПАО "Промсвязьбанк" | C163: ПАО "Промсвязьбанк" | D163: ПАО "Промсвязьбанк" | E163: ПАО "Промсвязьбанк" | F163: ПАО "Промсвязьбанк" | G163: 1338 | H163: 1338
B166: Ведущие операторы рынка – объем клиентских операций | H166: Таблица 3
B167: (по стоимостному объему сделок, заключенных в интересах клиентов за месяц)
B168: Наименование Участника торгов | G168: Торговый оборот, руб.
B169: ООО "Ренессанс Брокер" | C169: ООО "Ренессанс Брокер" | D169: ООО "Ренессанс Брокер" | E169: ООО "Ренессанс Брокер" | F169: ООО "Ренессанс Брокер" | G169: 1.453218794e+12 | H169: 1.453218794e+12
B170: ФГ БКС | C170: ФГ БКС | D170: ФГ БКС | E170: ФГ БКС | F170: ФГ БКС | G170: 1.233619004e+12 | H170: 1.233619004e+12
B171: ФГ "ОТКРЫТИЕ" | C171: ФГ "ОТКРЫТИЕ" | D171: ФГ "ОТКРЫТИЕ" | E171: ФГ "ОТКРЫТИЕ" | F171: ФГ "ОТКРЫТИЕ" | G171: 1.075261866e+12 | H171: 1.075261866e+12
B172: Сбербанк | C172: Сбербанк | D172: Сбербанк | E172: Сбербанк | F172: Сбербанк | G172: 7.819278444e+11 | H172: 7.819278444e+11
B173: ПАО "Промсвязьбанк" | C173: ПАО "Промсвязьбанк" | D173: ПАО "Промсвязьбанк" | E173: ПАО "Промсвязьбанк" | F173: ПАО "Промсвязьбанк" | G173: 3.708302727e+11 | H173: 3.708302727e+11
B174: ООО "БК РЕГИОН" | C174: ООО "БК РЕГИОН" | D174: ООО "БК РЕГИОН" | E174: ООО "БК РЕГИОН" | F174: ООО "БК РЕГИОН" | G174: 3.228930891e+11 | H174: 3.228930891e+11
B175: ООО "ИК ВЕЛЕС Капитал" | C175: ООО "ИК ВЕЛЕС Капитал" | D175: ООО "ИК ВЕЛЕС Капитал" | E175: ООО "ИК ВЕЛЕС Капитал" | F175: ООО "ИК ВЕЛЕС Капитал" | G175: 3.071285063e+11 | H175: 3.071285063e+11
B176: АО "ФИНАМ" | C176: АО "ФИНАМ" | D176: АО "ФИНАМ" | E176: АО "ФИНАМ" | F176: АО "ФИНАМ" | G176: 2.900022395e+11 | H176: 2.900022395e+11
B177: ПАО "Совкомбанк" | C177: ПАО "Совкомбанк" | D177: ПАО "Совкомбанк" | E177: ПАО "Совкомбанк" | F177: ПАО "Совкомбанк" | G177: 2.503410633e+11 | H177: 2.503410633e+11
B178: ПАО КБ "УБРиР" | C178: ПАО КБ "УБРиР" | D178: ПАО КБ "УБРиР" | E178: ПАО КБ "УБРиР" | F178: ПАО КБ "УБРиР" | G178: 2.202623417e+11 | H178: 2.202623417e+11
